Workbook

Sheet окончат
P2: «ПРИЛОЖЕНИЕ № 1
P3: к государственной программе Забайкальского края
P4: «Социальная поддержка граждан»
B5: Основные мероприятия, показатели и объемы финансирования государственной программы «Социальная поддержка граждан»
C7: Основные мероприятия, мероприятия, показатели и объемы финансирования государственной программы Забайкальского края «Социальная поддержка граждан»
A9: № | B9: Наименование целей, задач, подпрограмм, основных мероприятий, мероприятий, ведомственных целевых программ, показателей | C9: Единица измерения показателя | D9: Коэффициент значимости | E9: Методика расчета показателя | F9: Сроки реализации | G9: Ответственный исполнитель и соисполнители | H9: Коды бюджетной классификации расходов
H10: Главный раздел, подраздел | I10: Целевая статья | J10: Вид расходов | K10: 2014 | L10: 2015 | M10: 2016 | N10: 2017 | O10: 2018 | P10: 2019 | Q10: 2020 | R10: 2021 | S10: 2022 | T10: 2023 | U10: 2024 | V10: 2025 | W10: Итого
A11: 1 | B11: 2 | C11: 3 | D11: 4 | E11: 5 | F11: 6 | G11: 7 | H11: 8 | I11: 9 | J11: 10 | K11: 12 | L11: 13 | M11: 14 | N11: 15 | O11: 16 | P11: 17 | Q11: 18 | R11: 19 | S11: 20 | T11: 21 | U11: 22 | V11: 22 | W11: 24
A12: 1. | B12: Цель «Сохранение населения, здоровья и благополучия людей. Повышение качества, доступности и эффективности социальной поддержки населения Забайкальского края » | D12: Х
B13: финансирование за счет краевого бюджета | C13: тыс. рублей | D13: Х | E13: Х | F13: Х | G13: ВСЕГО | H13: Х | I13: Х | J13: Х | K13: 6105214.1 | L13: 6587113.7 | M13: 6313752.7 | N13: =N14+N16+N17+N15 -> 8043623.804 | O13: 7539944.6 | P13: =P14+P16+P17+P15 -> 7869524.4 | Q13: 8296948.741 | R13: =R14+R16+R17+R15 -> 8352973.606 | S13: =S14+S16+S17+S15 -> 9221552.502 | T13: =T14+T16+T17+T15 -> 9874143.3 | U13: =U14+U16+U17+U15 -> 8158389.01 | V13: =V14+V16+V17+V15 -> 10248355.2 | W13: =SUM(K13:S13)+T13+U13+V13 -> 96611535.66
G14: Министерство труда и социальной защиты населения Забайкальского края | H14: Х | I14: Х | J14: Х | K14: 5771309.6 | L14: 6478485.5 | M14: 6239793.7 | N14: =N31+N201+N323+N874-0.5-N15-N16-N17-0.01 -> 7949026.104 | O14: 7502171.4 | P14: =P31+P201+P323+P874-P15-P16-P17 -> 7810684.5 | Q14: =Q31+Q201+Q323+Q874-Q15-Q16-Q17 -> 8261147.641 | R14: =R31+R201+R323+R874+R1103-R15-R16-R17 -> 8172801.506 | S14: =S31+S201+S323+S874+S1103-S15-S16-S17 -> 9113595.102 | T14: =T31+T201+T323+T874+T1103-T15-T16-T17 -> 9794445 | U14: =U31+U201+U323+U874+U1103-U15-U16-U17 -> 8079112.61 | V14: =V31+V201+V323+V874+V1103-V15-V16-V17 -> 10198741.9 | W14: =SUM(K14:S14)+T14+U14+V14 -> 95371314.56
G15: Министерство образования и науки Забайкальского края | H15: Х | I15: Х | J15: Х | K15: =K343 -> 1875.8 | L15: =L343 -> 0 | M15: 41511.9 | N15: 0 | O15: 0 | P15: 0 | Q15: 0 | R15: 0 | S15: 0 | T15: 0 | U15: 0 | V15: 0 | W15: 43387.7
G16: Министерство строительства, дорожного хозяйства и транспорта Забайкальского края | H16: Х | I16: Х | J16: Х | K16: 247225.5 | L16: 63102.9 | M16: 6410.8 | N16: 67571.1 | O16: =15604.614+20568.276 -> 36172.89 | P16: =32626+6960 -> 39586 | Q16: 0 | R16: =R340+R317 -> 36053.9 | S16: =S340+S318 -> 57017.9 | T16: =T340+T317+T339 -> 50548.3 | U16: =U340+U318+U339 -> 50131.1 | V16: =V340+V318 -> 49613.3 | W16: 703433.69
G17: Департамент государственного имущества и земельных отношений Забайкальского края | H17: Х | I17: Х | J17: Х | K17: 84803.2 | L17: 45525.3 | M17: 26036.3 | N17: =5402.2+21624.4 -> 27026.6 | O17: 1600.285 | P17: =12336.7+6917.2 -> 19253.9 | Q17: =41577.3-5776.2 -> 35801.1 | R17: =R339 -> 144118.2 | S17: =S339+S502 -> 50939.5 | T17: =T502 -> 29150 | U17: =U502 -> 29145.3 | V17: =V339+V502 -> 0 | W17: 493399.685
B18: кроме того, финансирование из других источников: | C18: Х | D18: Х | E18: Х | F18: Х | G18: Х | H18: Х | I18: Х | J18: Х | K18: 0 | L18: 0 | M18: 0 | N18: 0 | O18: 0 | P18: 0 | Q18: 0 | R18: 0 | S18: 0 | T18: 0 | U18: 0 | V18: 0 | W18: 0
B19: - из федерального бюджета | C19: тыс. рублей | D19: Х | E19: Х | F19: Х | G19: ВСЕГО | H19: Х | I19: Х | J19: Х | K19: =SUM(K20:K23) -> 1963654 | L19: 1880423.6 | M19: 2053106.003 | N19: 2043202.6 | O19: 1955895.699 | P19: 2898000 | Q19: 8407711.3 | R19: =SUM(R20:R23) -> 11732059.1 | S19: =SUM(S20:S22) -> 12988376 | T19: =SUM(T20:T23) -> 9427473 | U19: =SUM(U20:U23) -> 7246180.2 | V19: =SUM(V20:V23) -> 6214070.6 | W19: 68810152.1
G20: Министерство труда и социальной защиты населения Забайкальского края | H20: Х | I20: Х | J20: Х | K20: =K38+K325-K23-K22-K21 -> 1772846.3 | L20: =L38+L325-L23-L22-L21 -> 1646499.5 | M20: =M38+M325-M23-M22-M21 -> 1770561.203 | N20: =N38+N325-N23-N22-N21+0.6 -> 1577903.8 | O20: =O38+O325-O23-O22-O21 -> 1686351.9 | P20: =P38+P325-P23-P22-P21+P199 -> 2595686.7 | Q20: 8099972.3 | R20: =R38+R325-R23-R22-R21+R199 -> 11051979.8 | S20: =S38+S325-S23-S22-S21+S199 -> 12291752.3 | T20: =T38+T325-T23-T22-T21+T199 -> 9018039.6 | U20: =U38+U325-U23-U22-U21+U199 -> 6364499.6 | V20: =V38+V325-V23-V22-V21+V199 -> 5812654.1 | W20: 63688747.1
G21: Министерство строительства, дорожного хозяйства и транспорта Забайкальского края | H21: Х | I21: Х | J21: Х | K21: 107317.5 | L21: 95700 | M21: 280854.3 | N21: 333113.1 | O21: 244471.9 | P21: 109039.3 | R21: =R336 -> 172650.3 | S21: =S336 -> 436610 | T21: =T336+T319+T335 -> 409433.4 | U21: =U336+U319 -> 881680.6 | V21: =V336+V319 -> 401416.5 | W21: 3472286.9
G22: Департамент государственного имущества и земельных отношений Забайкальского края | H22: Х | I22: Х | J22: Х | K22: 83490.2 | L22: 138224.1 | M22: 1690.5 | N22: 132185.7 | O22: 25071.899 | P22: 193274 | Q22: 307739 | R22: =R335 -> 507429 | S22: =S335 -> 260013.7 | T22: 0 | U22: =U335 -> 0 | V22: =V335 -> 0 | W22: 1649118.099
G23: Министерство образования и науки Забайкальского края | H23: Х | I23: Х | J23: Х | K23: 0 | L23: 0 | M23: 0 | N23: 0 | O23: 0 | P23: 0 | Q23: 0 | R23: 0 | S23: 0 | T23: 0 | U23: 0 | V23: 0 | W23: =SUM(K23:S23)+T23+U23 -> 0
B24: - из Фонда | C24: тыс. рублей | D24: Х | E24: Х | F24: Х | G24: Министерство труда и социальной защиты населения Забайкальского края | H24: Х | I24: Х | J24: Х | K24: 0 | L24: 0 | M24: 0 | N24: 0 | O24: 0 | P24: 0 | Q24: 0 | R24: 0 | S24: =S202+S332 -> 8394 | T24: =T202+T332 -> 0 | U24: =U202+U332 -> 0 | V24: =V202+V332 -> 0 | W24: 8394
B25: - из внебюджетных источников | C25: тыс. рублей | D25: Х | E25: Х | F25: Х | G25: Министерство труда и социальной защиты населения Забайкальского края | H25: Х | I25: Х | J25: Х | K25: 0 | L25: 0 | M25: 0 | N25: 0 | O25: 0 | P25: 0 | Q25: 0 | R25: 0 | S25: 0 | T25: 0 | U25: 0 | V25: 0 | W25: 0
B26: - из Фонда пенсионного и социального страхования Российской Федерации | C26: тыс. рублей | D26: Х | E26: Х | F26: Х | G26: Министерство труда и социальной защиты населения Забайкальского края | H26: Х | I26: Х | J26: Х | K26: 3343.6 | L26: 21925.7 | M26: 6618.5 | N26: =N200+N33 -> 2170.1 | O26: =O200+O33 -> 21783 | P26: =P200+P33 -> 0 | Q26: =Q200+Q33 -> 5783.6 | R26: =R200+R33 -> 0 | S26: =S200+S168 -> 81.7 | T26: 0 | U26: 0 | V26: 0 | W26: =SUM(K26:S26)+T26+U26+V26 -> 61706.2
A27: 1-ПЦ1 | B27: Показатель «Уровень удовлетворенности населения качеством государственных услуг в сфере социальной защиты» | C27: % | D27: Х | E27: Уд / О *100, где: Уд - количество удовлетворенных качеством услуг, реализуемых в Забайкальском крае; О - общее число опрошенных. | F27: Х | G27: Министерство труда и социальной защиты населения Забайкальского края | H27: Х | I27: Х | J27: Х | K27: не менее 86 | L27: не менее 87 | M27: не менее 88 | N27: не менее 89 | O27: не менее 90 | P27: не менее 90 | Q27: не менее 90 | R27: не менее 90 | S27: не менее 91,5 | T27: не менее 92 | U27: не менее 93,5 | V27: не менее 94 | W27: Х
A28: 1-ПЦ2 | B28: Показатель «Доля граждан, получивших социальную поддержку и государственные социальные гарантии, в общей численности граждан, имеющих право на их получение и обратившихся за их получением» | C28: % | D28: Х | E28: Псп / Ч *100, где: Псп - численность граждан, получивших социальную поддержку и гос. социальные гарантии; Ч - общая численность граждан, имеющих право на получение соц. поддержки и соц. гарантий и обратившихся за их получением | F28: Х | G28: Министерство труда и социальной защиты населения Забайкальского края | H28: Х | I28: Х | J28: Х | K28: Х | L28: Х | M28: Х | N28: Х | O28: Х | P28: Х | Q28: Х | R28: Х | S28: 94 | T28: 95 | U28: 96 | V28: 98 | W28: Х
B29: Задача 1. «Повышение качества и доступности мер социальной поддержки граждан» | C29: Х | D29: Х | E29: Х | F29: Х | G29: Х | H29: Х | I29: Х | J29: Х | K29: Х | L29: Х | M29: Х | N29: Х | O29: Х | P29: Х | Q29: Х | R29: Х | S29: Х | T29: Х | U29: Х | V29: Х | W29: Х
A30: 1.1. | B30: Подпрограмма 1. «Развитие мер социальной поддержки отдельных категорий граждан, проживающих в Забайкальском крае» | C30: Х | D30: 1 | E30: Х | F30: 2014-2025 | G30: Министерство труда и социальной защиты населения Забайкальского края | H30: Х | I30: Х | J30: Х | K30: Х | L30: Х | M30: Х | N30: Х | O30: Х | P30: Х | Q30: Х | R30: Х | S30: Х | T30: Х | U30: Х | V30: Х | W30: Х
B31: финансирование за счет краевого бюджета | C31: тыс. рублей | D31: Х | E31: Х | F31: Х | G31: Х | H31: Х | I31: Х | J31: Х | K31: =K36+K159 -> 2702374.1 | L31: =L36+L159 -> 2455419.8 | M31: =M36+M175-0.022 -> 2345116.4 | N31: =N36+N159 -> 3214283.9 | O31: =O36+O159-0.033 -> 2626796 | P31: =P36+P159 -> 2722768.5 | Q31: =Q36+Q159 -> 2845271.39 | R31: =R36+R159 -> 2710035.7 | S31: =S36+S159+S181 -> 2884297.1 | T31: 3107306.5 | U31: 2483698.7 | V31: 3219173 | W31: =SUM(K31:S31)+T31+U31+V31 -> 33316541.09
B32: финансирование из федерального бюджета | C32: тыс. рублей | D32: Х | E32: Х | F32: Х | G32: Х | H32: Х | I32: Х | J32: Х | K32: =K38 -> 796310.3 | L32: 702368.9 | M32: 704768.7031 | N32: 667993.08 | O32: 592053.8 | P32: 654912.3 | Q32: 1961023.659 | R32: 2545688.1 | S32: =S38 -> 3690549.4 | T32: 4276819.5 | U32: 4546645.2 | V32: =V38 -> 4637282 | W32: 25776414.94
B33: финансирование за счет средств Фонда пенсионного и социального страхования Российской Федерации | C33: тыс. рублей | D33: Х | E33: Х | F33: Х | G33: Х | H33: Х | I33: Х | J33: Х | K33: 0 | L33: 0 | M33: =M167 -> 95.6 | N33: 198.5 | O33: =O167+O171 -> 19852.8 | P33: 0 | Q33: 5783.6 | R33: 0 | S33: =S37 -> 81.7 | T33: 0 | U33: 0 | V33: 0 | W33: 26012.2
A34: 1.1-ПП1 | B34: Показатель «Доля граждан, охваченных различными формами социальной поддержки, от общего числа граждан, проживающих на территории Забайкальского края» | C34: % | D34: 1 | E34: Нсп / Н *100, где: Нсп - численность населения, охваченного социальной поддержкой; Н - общая численность населения края. | F34: Х | G34: Х | H34: Х | I34: Х | J34: Х | K34: 28.1 | L34: 28.3 | M34: 28.5 | N34: 28.5 | O34: 28.5 | P34: 28.5 | Q34: 34.7 | R34: 35.4 | S34: 34.9 | T34: 34.4 | U34: 34.3 | V34: 34.2 | W34: Х
A35: 1.1.1. | B35: Основное мероприятие 1. «Обеспечение реализации прав отдельных категорий граждан на меры социальной поддержки» | C35: Х | D35: 1 | E35: Х | F35: 2014-2025 | G35: Министерство труда и социальной защиты населения Забайкальского края | H35: Х | I35: Х | J35: Х | K35: Х | L35: Х | M35: Х | N35: Х | O35: Х | P35: Х | Q35: Х | R35: Х | S35: Х | T35: Х | U35: Х | V35: Х | W35: Х
B36: финансирование за счет краевого бюджета | C36: тыс.рублей | D36: Х | E36: Х | F36: Х | G36: Х | H36: Х | I36: Х | J36: Х | K36: =K41+K56+K70+K74+K78+K87+K98+K101+K103+K107+K114+K118+K122+K126+K130+K99+K110 -> 2702374.1 | L36: =L41+L56+L70+L74+L78+L87+L98+L101+L103+L107+L114+L118+L122+L126+L130+L99+L110 -> 2455419.8 | M36: =M41+M56+M70+M74+M78+M87+M98+M101+M103+M107+M114+M118+M122+M126+M130+M99+M110+M161-M166 -> 2345116.422 | N36: =N41+N56+N70+N74+N78+N87+N98+N101+N103+N107+N114+N118+N122+N126+N130+N99+N110+N161-N166+N100 -> 3214283.9 | O36: =O41+O56+O70+O74+O78+O87+O98+O101+O103+O107+O114+O118+O122+O126+O130+O99+O110+O161-O166+O100+O172+O173 -> 2626796.033 | P36: =P41+P56+P70+P74+P78+P87+P98+P101+P103+P107+P114+P118+P122+P126+P130+P99+P110+P161-P166+P100+P172+P173 -> 2722768.5 | Q36: =Q41+Q56+Q70+Q74+Q78+Q87+Q98+Q101+Q103+Q107+Q114+Q118+Q122+Q126+Q130+Q99+Q110+Q161-Q166+Q100+Q172+Q173+Q92 -> 2845271.39 | R36: =R41+R56+R70+R74+R78+R87+R98+R101+R103+R107+R114+R118+R122+R126+R130+R99+R110+R161-R166+R100+R172+R173+R92+R91+R90 -> 2710035.7 | S36: =S41+S56+S70+S74+S78+S87+S98+S101+S103+S107+S114+S118+S122+S126+S130+S99+S110+S161-S166+S100+S172+S173+S92+S91+S90 -> 2884297.1 | T36: =T41+T56+T70+T74+T78+T87+T98+T101+T103+T107+T114+T118+T122+T126+T130+T99+T110+T161-T166+T100+T172+T173+T92+T91+T90 -> 3107306.5 | U36: 2483698.7 | V36: 3219173 | W36: =SUM(K36:S36)+T36+U36+V36 -> 33316541.14
B37: кроме того, финансирование из других источников: | C37: тыс.рублей | D37: Х | E37: Х | F37: Х | G37: Х | H37: Х | I37: Х | J37: Х | K37: 0 | L37: 0 | M37: 0 | N37: 0 | O37: 0 | P37: 0 | Q37: 0 | R37: 0 | S37: =S168 -> 81.7 | T37: 0 | U37: 0 | V37: 0 | W37: 81.7
B38: - из федерального бюджета | C38: тыс. рублей | D38: Х | E38: Х | F38: Х | G38: Х | H38: Х | I38: Х | J38: Х | K38: =K132+K139+K141+K146+K149+K160 -> 796310.3 | L38: =L132+L139+L141+L146+L150+L152+L155+L160 -> 702368.9 | M38: =M132+M139+M141+M146+M150+M152+M155+M160+M166 -> 704768.7031 | N38: =N132+N139+N141+N146+N150+N152+N155+N160+N166+N153 -> 667993.08 | O38: =O132+O139+O141+O146+O150+O152+O155+O160+O166+O153 -> 592053.8 | P38: =P132+P139+P141+P146+P150+P152+P155+P160+P166+P153 -> 654912.3 | Q38: =Q132+Q139+Q141+Q146+Q150+Q152+Q155+Q160+Q166+Q153+Q85+Q151+Q95 -> 1961023.659 | R38: =R132+R139+R141+R146+R150+R152+R155+R160+R166+R153+R85+R151+R95+R94+R93+R154 -> 2545688.1 | S38: =S132+S139+S141+S146+S150+S152+S155+S160+S166+S153+S85+S151+S95+S94+S93+S84 -> 3690549.4 | T38: =T132+T139+T141+T146+T150+T152+T155+T160+T166+T153+T85+T151+T95+T94+T93+T84+T138 -> 4276819.5 | U38: =U132+U139+U141+U146+U150+U152+U155+U160+U166+U153+U85+U151+U95+U94+U93+U84+U138 -> 4546645.2 | V38: 4637282 | W38: 25776414.94
A39: 1.1.1.-ПОМ1 | B39: Показатель «Полнота исполнения публичных нормативных обязательств» | C39: % | D39: 1 | E39: ПНОис / ПНО *100, где: ПНОис - объем исполненных публичных нормативных обязательств; ПНО - объем предусмотренных к исполнению публичных нормативных обязательств. | F39: Х | G39: Министерство труда и социальной защиты населения Забайкальского края | H39: Х | I39: Х | J39: Х | K39: 100 | L39: 100 | M39: 100 | N39: 100 | O39: 100 | P39: 100 | Q39: 100 | R39: 100 | S39: 100 | T39: 100 | U39: 100 | V39: 100 | W39: Х
A40: 1.1.1.1. | B40: Мероприятие «Предоставление ежемесячной денежной выплаты» | C40: Х | D40: 1 | E40: Х | F40: 2014-2025 | G40: Х | H40: Х | I40: Х | J40: Х | K40: Х | L40: Х | M40: Х | N40: Х | O40: Х | P40: Х | Q40: Х | R40: Х | S40: Х | T40: Х | U40: Х | V40: Х | W40: Х
B41: финансирование за счет краевого бюджета | C41: тыс. рублей | D41: Х | E41: Х | F41: Х | G41: Х | H41: 1003 | I41: Х | J41: Х | K41: =K42+K45+K49+K52 -> 734492.5 | L41: 636941.3 | M41: 698220.43 | N41: 882933.9 | O41: 740923.547 | P41: 804866.4 | Q41: =Q42+Q45+Q49+Q52 -> 757116.779 | R41: 736183.5 | S41: 748497.8 | T41: 787969.1 | U41: 604091.9 | V41: 791786.9 | W41: =SUM(K41:S41)+T41+U41+V41 -> 8924024.056
A42: 1.1.1.1.1. | B42: Предоставление ежемесячной денежной выплаты ветеранам труда | C42: тыс. рублей | D42: Х | E42: Х | F42: Х | G42: Х | H42: 1003 | I42: 17 1 01 82101 | J42: Х | K42: =K43+K44 -> 391810.2 | L42: =L43+L44 -> 344408.1 | M42: 438546.13 | N42: 516455.7 | O42: =O43+O44 -> 435623.66 | P42: 475815.8 | Q42: 446291.8 | R42: 432582.9 | S42: =S43+S44 -> 440679.6 | T42: =T43+T44 -> 465050.1 | U42: =U43+U44 -> 356527.9 | V42: =V43+V44 -> 467303.3 | W42: 5211095.19
B43: Пособия, компенсации, меры социальной поддержки по публичным нормативным обязательствам | C43: тыс. рублей | D43: Х | E43: Х | F43: Х | G43: Х | H43: 1003 | I43: 17 1 01 82101 | J43: 313 | K43: 385719.5 | L43: 338671.2 | M43: 431746.07 | N43: 509201.2 | O43: 428851.7 | P43: 470175.8 | Q43: 441116.1 | R43: 427150.7 | S43: 435213.2 | T43: 458897.6 | U43: 351811.1 | V43: 461121 | W43: 5139675.17
B44: Прочая закупка товаров, работ и услуг для государственных нужд | C44: тыс. рублей | D44: Х | E44: Х | F44: Х | G44: Х | H44: 1003 | I44: 17 1 01 82101 | J44: 244 | K44: 6090.7 | L44: 5736.9 | M44: 6800.06 | N44: 7254.5 | O44: 6771.96 | P44: 5640 | Q44: 5175.7 | R44: 5432.2 | S44: 5466.4 | T44: 6152.5 | U44: 4716.8 | V44: 6182.3 | W44: 71420.02
A45: 1.1.1.1.2 | B45: Предоставление ежемесячной денежной выплаты ветеранам труда Забайкальского края | C45: тыс. рублей | D45: Х | E45: Х | F45: Х | G45: Х | H45: 1003 | I45: 17 1 01 82102 | J45: Х | K45: =K46+K47+K48 -> 306608.7 | L45: 261311.1 | M45: 237194.84 | N45: 334133.2 | O45: =O46+O47+O48 -> 283581.29 | P45: 309792.4 | Q45: =Q46+Q47+Q48 -> 293392.73 | R45: 289925.9 | S45: 296410 | T45: 311382.1 | U45: 238719.2 | V45: 312890.8 | W45: 3475342.26
B46: Пособия, компенсации, меры социальной поддержки по публичным нормативным обязательствам | C46: тыс. рублей | D46: Х | E46: Х | F46: Х | G46: Х | H46: 1003 | I46: 17 1 01 82102 | J46: 313 | K46: 301930.7 | L46: 257227.9 | M46: 233504.96 | N46: 329386.3 | O46: 279134.3 | P46: 306044.4 | Q46: 289938.14 | R46: 286281.8 | S46: 292583 | T46: 306656.7 | U46: 235096.5 | V46: 308142.5 | W46: 3425927.2
B47: Прочая закупка товаров, работ и услуг для государственных нужд | C47: тыс. рублей | D47: Х | E47: Х | F47: Х | G47: Х | H47: 1003 | I47: 17 1 01 82102 | J47: 244 | K47: 4678 | L47: 4083.1 | M47: 3689.88 | N47: 4746.9 | O47: 4446.99 | P47: 3748 | Q47: 3454.59 | R47: 3644.1 | S47: 3827 | T47: 4225.4 | U47: 3239.4 | V47: 4245.9 | W47: 48029.26
B48: Социальные выплаты гражданам, кроме публичных нормативных социальных выплат | C48: тыс. рублей | D48: Х | E48: Х | F48: Х | G48: Х | H48: 1003 | I48: 17 1 01 82102 | J48: 323 | K48: 0 | L48: 0.1 | M48: 0 | N48: 0 | O48: 0 | P48: 0 | Q48: 0 | R48: 0 | S48: 0 | T48: 500 | U48: 383.3 | V48: 502.4 | W48: 1385.8
A49: 1.1.1.1.3 | B49: Предоставление ежемесячной выплаты труженикам тыла | C49: тыс. рублей | D49: Х | E49: Х | F49: Х | G49: Х | H49: 1003 | I49: 17 1 01 82103 | J49: Х | K49: 25813.4 | L49: =L50+L51 -> 20466.2 | M49: 14414.67 | N49: 20004.6 | O49: =O50+O51 -> 12683.897 | P49: 10919.7 | Q49: 9246.949 | R49: 6761.1 | S49: =S50+S51 -> 5104.7 | T49: =T50+T51 -> 5105.7 | U49: =U50+U51 -> 3914.3 | V49: =V50+V51 -> 5130.5 | W49: 139565.716
B50: Прочая закупка товаров, работ и услуг для государственных нужд | C50: тыс. рублей | D50: Х | E50: Х | F50: Х | G50: Х | H50: 1003 | I50: 17 1 01 82103 | J50: 244 | K50: 349.6 | L50: 337.7 | M50: 242.79 | N50: 323.3 | O50: 214.85 | P50: 140.5 | Q50: 118.7 | R50: 97.8 | S50: 85.7 | T50: 82.2 | U50: 63 | V50: 82.6 | W50: 2138.74
B51: Пособия, компенсации, меры социальной поддержки по публичным нормативным обязательствам | C51: тыс. рублей | D51: Х | E51: Х | F51: Х | G51: Х | H51: 1003 | I51: 17 1 01 82103 | J51: 313 | K51: 21420 | L51: 20128.5 | M51: 14171.88 | N51: 19681.3 | O51: 12469.047 | P51: 10779.2 | Q51: 9128.249 | R51: 6663.3 | S51: 5019 | T51: 5023.5 | U51: 3851.3 | V51: 5047.9 | W51: 133383.176
A52: 1.1.1.1.4 | B52: Предоставление ежемесячной денежной выплаты реабилитированным лицам и лицам, признанным пострадавшими от политических репрессий | C52: тыс. рублей | D52: Х | E52: Х | F52: Х | G52: Х | H52: 1003 | I52: 17 1 01 82104 | J52: Х | K52: =K53+K54 -> 10260.2 | L52: 10755.9 | M52: 8064.79 | N52: 12340.4 | O52: =O53+O54 -> 9034.7 | P52: 8338.5 | Q52: 8185.3 | R52: 6913.6 | S52: =S53+S54 -> 6303.5 | T52: =T53+T54 -> 6431.2 | U52: =U53+U54 -> 4930.5 | V52: =V53+V54 -> 6462.3 | W52: 98020.89
B53: Прочая закупка товаров, работ и услуг для государственных нужд | C53: тыс. рублей | D53: Х | E53: Х | F53: Х | G53: Х | H53: 1003 | I53: 17 1 01 82104 | J53: 244 | K53: 164.9 | L53: 170.8 | M53: 130.04 | N53: 193.4 | O53: 132.2 | P53: 102.6 | Q53: 114.3 | R53: 90.5 | S53: 83.9 | T53: 91.7 | U53: 70.3 | V53: 92.1 | W53: 1436.74
B54: Пособия, компенсации, меры социальной поддержки по публичным нормативным обязательствам | C54: тыс. рублей | D54: Х | E54: Х | F54: Х | G54: Х | H54: 1003 | I54: 17 1 01 82104 | J54: 313 | K54: 10095.3 | L54: 10585.1 | M54: 7934.75 | N54: 12147 | O54: 8902.5 | P54: 8235.9 | Q54: 8071 | R54: 6823.1 | S54: 6219.6 | T54: 6339.5 | U54: 4860.2 | V54: 6370.2 | W54: 96584.15
A55: 1.1.1.2. | B55: Мероприятие «Предоставление ежемесячной компенсации расходов на оплату жилого помещения и коммунальных услуг» | C55: Х | D55: 1 | E55: Х | F55: Х | G55: Министерство труда и социальной защиты населения Забайкальского края | H55: Х | I55: Х | J55: Х | K55: Х | L55: Х | M55: Х | N55: Х | O55: Х | P55: Х | Q55: Х | R55: Х | S55: Х | T55: Х | U55: Х | V55: Х | W55: Х
B56: финансирование за счет краевого бюджета | C56: тыс. рублей | D56: Х | E56: Х | F56: Х | G56: Х | H56: 1003 | I56: Х | J56: Х | K56: =K57+K60+K63+K66 -> 972226.1 | L56: 904369 | M56: 895516.78 | N56: 1278388.5 | O56: 992956.262 | P56: 1010054.2 | Q56: 993599 | R56: =R57+R60+R63+R66 -> 940385.4 | S56: =S57+S60+S63+S66 -> 952365.2 | T56: =T57+T60+T63+T66 -> 990018.1 | U56: =U57+U60+U63+U66 -> 758995 | V56: =V57+V60+V63+V66 -> 994815 | W56: 11683688.54
A57: 1.1.1.2.1 | B57: «Ежемесячная компенсация расходов на оплату жилых помещений и коммунальных услуг отдельным категориям специалистов, работающим и проживающим в сельской местности, поселках городского типа (рабочих поселках)» | C57: тыс. рублей | D57: Х | E57: Х | F57: Х | G57: Х | H57: 1003 | I57: 17 1 01 84002 | J57: Х | K57: =K58+K59 -> 181498.3 | L57: 139510.3 | M57: 142277.3 | N57: 197904.7 | O57: =O58+O59 -> 129910.326 | P57: 117044.7 | Q57: 117007.9 | R57: 109587.5 | S57: =S58+S59 -> 110622.5 | T57: =T58+T59 -> 121919.5 | U57: =U58+U59 -> 93468.8 | V57: =V58+V59 -> 122510.2 | W57: 1583262.026
B58: Прочая закупка товаров, работ и услуг для государственных нужд | C58: тыс. рублей | D58: Х | E58: Х | F58: Х | G58: Х | H58: 1003 | I58: 17 1 01 84002 | J58: 244 | K58: 2872.3 | L58: 2183.3 | M58: 2314.28 | N58: 2756.9 | O58: 2001.346 | P58: 1380.7 | Q58: 1355.3 | R58: 1377.5 | S58: 1422.5 | T58: 1601 | U58: 1227.4 | V58: 1608.8 | W58: 22101.326
B59: Пособия, компенсации, меры социальной поддержки по публичным нормативным обязательствам | C59: тыс. рублей | D59: Х | E59: Х | F59: Х | G59: Х | H59: 1003 | I59: 17 1 01 84002 | J59: 313 | K59: 178626 | L59: 137327 | M59: 139963.02 | N59: 195147.8 | O59: 127908.98 | P59: 115664 | Q59: 115652.6 | R59: 108210 | S59: 109200 | T59: 120318.5 | U59: 92241.4 | V59: 120901.4 | W59: 1561160.7
A60: 1.1.1.2.2 | B60: Ежемесячная компенсация расходов на оплату жилых помещений и коммунальных услуг ветеранам труда | C60: тыс. рублей | D60: Х | E60: Х | F60: Х | G60: Х | H60: 1003 | I60: 17 1 01 84522 | J60: Х | K60: =K61+K62 -> 480175.6 | L60: 477107.8 | M60: 509533.84 | N60: 683714.5 | O60: 549468.526 | P60: 563972.8 | Q60: 551800.3 | R60: 519696.3 | S60: =S61+S62 -> 520531 | T60: =T61+T62 -> 535222.2 | U60: =U61+U62 -> 410328.5 | V60: =V61+V62 -> 537815.5 | W60: 6339366.866
B61: Прочая закупка товаров, работ и услуг для государственных нужд | C61: тыс. рублей | D61: Х | E61: Х | F61: Х | G61: Х | H61: 1003 | I61: 17 1 01 84522 | J61: 244 | K61: 7409 | L61: 7476.1 | M61: 8053.35 | N61: 9176.4 | O61: 8654.526 | P61: 6670 | Q61: 6367.4 | R61: 6451 | S61: 6380 | T61: 6966 | U61: 5344 | V61: 6999.8 | W61: 85947.576
B62: Пособия, компенсации, меры социальной поддержки по публичным нормативным обязательствам | C62: тыс.рублей | D62: Х | E62: Х | F62: Х | G62: Х | H62: 1003 | I62: 17 1 01 84522 | J62: 313 | K62: 472766.6 | L62: 469631.7 | M62: 501480.49 | N62: 674538.1 | O62: 540814 | P62: 557302.8 | Q62: 545432.9 | R62: 513245.3 | S62: 514151 | T62: 528256.2 | U62: 404984.5 | V62: 530815.7 | W62: 6253419.29
A63: 1.1.1.2.3 | B63: Ежемесячная компенсация расходов на оплату жилых помещений и коммунальных услуг ветеранам труда Забайкальского края | C63: тыс. рублей | D63: Х | E63: Х | F63: Х | G63: Х | H63: 1003 | I63: 17 1 01 84523 | J63: Х | K63: =K64+K65 -> 282152.5 | L63: 258976.2 | M63: 220951.21 | N63: 363831.5 | O63: 289849.81 | P63: 306923.2 | Q63: 303723.1 | R63: 294857 | S63: =S64+S65 -> 306129 | T63: =T64+T65 -> 317963.9 | U63: =U64+U65 -> 243765.1 | V63: =V64+V65 -> 319504.5 | W63: 3508627.02
B64: Прочая закупка товаров, работ и услуг для государственных нужд | C64: тыс. рублей | D64: Х | E64: Х | F64: Х | G64: Х | H64: 1003 | I64: 17 1 01 84523 | J64: 244 | K64: 4235.5 | L64: 3974.3 | M64: 3399.79 | N64: 5057.2 | O64: 4526.3 | P64: 3613.7 | Q64: 3510.2 | R64: 3657 | S64: 3829 | T64: 4196.9 | U64: 3217.5 | V64: 4217.2 | W64: 47434.59
B65: Пособия, компенсации, меры социальной поддержки по публичным нормативным обязательствам | C65: тыс. рублей | D65: Х | E65: Х | F65: Х | G65: Х | H65: 1003 | I65: 17 1 01 84523 | J65: 313 | K65: 277917 | L65: 255001.9 | M65: 217551.42 | N65: 358774.3 | O65: 285323.51 | P65: 303309.5 | Q65: 300212.9 | R65: 291200 | S65: 302300 | T65: 313767 | U65: 240547.6 | V65: 315287.3 | W65: 3461192.43
A66: 1.1.1.2.4 | B66: Ежемесячная компенсация расходов на оплату жилых помещений и коммунальных услуг реабилитированным лицам и лицам, признанным пострадавшими от политических репрессий | C66: тыс. рублей | D66: Х | E66: Х | F66: Х | G66: Х | H66: 1003 | I66: 17 1 01 84531 | J66: Х | K66: =K67+K68 -> 28399.7 | L66: 28774.7 | M66: =M67+M68 -> 22754.43 | N66: 32937.8 | O66: 23727.6 | P66: 22113.5 | Q66: =Q67+Q68 -> 21067.7 | R66: 16244.6 | S66: =S67+S68 -> 15082.7 | T66: =T67+T68 -> 14912.5 | U66: =U67+U68 -> 11432.6 | V66: =V67+V68 -> 14984.8 | W66: 252432.63
B67: Прочая закупка товаров, работ и услуг для государственных нужд | C67: тыс. рублей | D67: Х | E67: Х | F67: Х | G67: Х | H67: 1003 | I67: 17 1 01 84531 | J67: 244 | K67: 449.7 | L67: 451.9 | M67: 360.4 | N67: 480.7 | O67: 375.3 | P67: 263.5 | Q67: 246.1 | R67: 224.8 | S67: 202.7 | T67: 204.5 | U67: 156.8 | V67: 205.5 | W67: 3621.9
B68: Пособия, компенсации, меры социальной поддержки по публичным нормативным обязательствам | C68: тыс. рублей | D68: Х | E68: Х | F68: Х | G68: Х | H68: 1003 | I68: 17 1 01 84531 | J68: 313 | K68: 27950 | L68: 28322.8 | M68: 22394.03 | N68: 32457.1 | O68: 23352.3 | P68: 21850 | Q68: 20821.6 | R68: 16019.8 | S68: 14880 | T68: 14708 | U68: 11275.8 | V68: 14779.3 | W68: 248810.73
A69: 1.1.1.3. | B69: Мероприятие «Ежемесячная компенсация расходов на оплату жилых помещений и коммунальных услуг педагогическим работникам» | C69: Х | E69: Х | F69: 2014-2025 | G69: Министерство труда и социальной защиты населения Забайкальского края | H69: Х | I69: Х | J69: Х | K69: Х | L69: Х | M69: Х | N69: Х | O69: Х | P69: Х | Q69: Х | R69: Х | S69: Х | T69: Х | U69: Х | V69: Х | W69: Х
B70: финансирование за счет краевого бюджета | C70: тыс. рублей | D70: Х | E70: Х | F70: Х | G70: Х | H70: 1003 | I70: 17 1 01 84001 | J70: Х | K70: =K71+K72 -> 303414.5 | L70: 276090.6 | M70: 219909.4 | N70: 373343.2 | O70: 302551.569 | P70: 342561.7 | Q70: 325357.06 | R70: 312938.9 | S70: =S71+S72 -> 325654.4 | T70: =T71+T72 -> 354730.8 | U70: =U71+U72 -> 271952.3 | V70: =V71+V72 -> 356449.5 | W70: 3764953.929
H71: 1003 | I71: 17 1 01 84001 | J71: 244 | K71: 4678.2 | L71: 4328.2 | M71: 3464.2 | N71: 5960.4 | O71: 3961.79 | P71: 4247.2 | Q71: 3742.3 | R71: 3990.6 | S71: 4151 | T71: 4688.7 | U71: 3594.6 | V71: 4711.4 | W71: 51518.59
H72: 1003 | I72: 17 1 01 84001 | J72: 313 | K72: 298736.3 | L72: 271762.4 | M72: 216445.2 | N72: 367382.8 | O72: 298589.779 | P72: 338314.5 | Q72: 321614.76 | R72: 308948.3 | S72: 321503.4 | T72: 350042.1 | U72: 268357.7 | V72: 351738.1 | W72: 3713435.339
A73: 1.1.1.4. | B73: Мероприятие «Предоставление гражданам субсидии на оплату жилого помещения и коммунальных услуг» | C73: Х | E73: Х | F73: 2014-2025 | G73: Министерство труда и социальной защиты населения Забайкальского края | H73: Х | I73: Х | J73: Х | K73: Х | L73: Х | M73: Х | N73: Х | O73: Х | P73: Х | Q73: Х | R73: Х | S73: Х | T73: Х | U73: Х | V73: Х | W73: Х
B74: финансирование за счет краевого бюджета | C74: тыс. рублей | D74: Х | E74: Х | F74: Х | G74: Х | H74: 1003 | I74: 17 1 01 84800 | J74: Х | K74: =K75+K76 -> 442928.6 | L74: 355356 | M74: 233281.1 | N74: 373455.4 | O74: 265413.54 | P74: 218971 | Q74: =Q75+Q76 -> 315232.6 | R74: 253365.6 | S74: 207146 | T74: 229284.2 | U74: 175779.4 | V74: 230395.1 | W74: 3300608.54
H75: 1003 | I75: 17 1 01 84800 | J75: 244 | K75: 6965.6 | L75: 5538.7 | M75: 3757.61 | N75: 5415 | O75: 4098.64 | P75: 2672.5 | Q75: 3671.6 | R75: 3015.9 | S75: 2686 | T75: 3068.5 | U75: 2352.5 | V75: 3083.4 | W75: 46325.95
H76: 1003 | I76: 17 1 01 84800 | J76: 313 | K76: 435963 | L76: 349817.3 | M76: 229523.49 | N76: 368040.4 | O76: 261314.9 | P76: 216298.5 | Q76: 311561 | R76: 250349.7 | S76: 204460 | T76: 226215.7 | U76: 173426.9 | V76: 227311.7 | W76: 3254282.59
A77: 1.1.1.5. | B77: Мероприятие «Региональная доплата к пенсии пенсионерам, получающим минимальную пенсию по старости и иные региональные доплаты к пенсиям» | C77: Х | D77: 1 | E77: Х | F77: 2014-2025 | G77: Министерство труда и социальной защиты населения Забайкальского края | H77: Х | I77: Х | J77: Х | K77: Х | L77: Х | M77: Х | N77: Х | O77: Х | P77: Х | Q77: Х | R77: Х | S77: Х | T77: Х | U77: Х | V77: Х | W77: Х
B78: финансирование за счет краевого бюджета | C78: тыс. рублей | D78: Х | E78: Х | F78: Х | G78: Х | H78: Всего | J78: Х | K78: =K82+K83 -> 29321.6 | L78: =L82+L83 -> 28000 | M78: =M82+M83 -> 21854.64 | N78: =N82+N83 -> 36794.5 | O78: =O82+O83 -> 29249.93 | P78: =P82+P83+P79 -> 31509 | Q78: =Q82+Q83+Q79+Q81 -> 124523.89 | R78: 143197.7 | S78: =S82+S83+S79+S81+S80 -> 313940.7 | T78: 382266.4 | U78: 383541.6 | V78: 490257.1 | W78: 2014457.06
H79: 1001 | I79: 17 1 01 82070 | J79: 244 | K79: 0 | L79: 0 | M79: 0 | N79: 0 | O79: 0 | P79: 0 | Q79: 7764.3 | R79: 10300 | S79: 14254 | T79: 16956.8 | U79: 0 | V79: 0 | W79: 49275.1
H80: 1001 | I80: 17 1 01 R007F | J80: 312 | K80: 0 | L80: 0 | M80: 0 | N80: 0 | O80: 0 | P80: 0 | Q80: 0 | R80: 0 | S80: 58135.2 | T80: 0 | U80: 0 | V80: 0 | W80: 58135.2
H81: 1001 | I81: 17 1 01 R0070 | J81: 312 | K81: 0 | L81: 0 | M81: 0 | N81: 0 | O81: 0 | P81: 0 | Q81: 87642 | R81: 104721 | S81: 213373.4 | T81: 330415.9 | U81: 356718.8 | V81: 456820.1 | W81: 1549691.2
H82: 1001 | I82: 17 1 01 89200 | J82: 244 | K82: 332.6 | L82: 313.2 | M82: 221.46 | N82: 362.7 | O82: 291.2 | P82: 284.6 | Q82: 471.7 | R82: 262.9 | S82: 253.6 | T82: 329.6 | U82: 253.4 | V82: 315.8 | W82: 3692.76
H83: 1001 | I83: 17 1 01 89200 | J83: 312 | K83: 28989 | L83: 27686.8 | M83: 21633.18 | N83: 36431.8 | O83: 28958.73 | P83: 31224.4 | Q83: 28645.89 | R83: 27913.8 | S83: 27924.5 | T83: 34564.1 | U83: 26569.4 | V83: 33121.2 | W83: 353662.8
B84: финансирование за счет федерального бюджета | C84: тыс. рублей | D84: Х | E84: Х | F84: Х | G84: Х | H84: 1001 | I84: 17 1 01 R007F | J84: 312 | K84: 0 | L84: 0 | M84: 0 | N84: 0 | O84: 0 | P84: 0 | Q84: 0 | R84: 0 | S84: 587811.4 | T84: 0 | U84: 0 | V84: 0 | W84: 587811.4
H85: 1001 | I85: 17 1 01 R0070 | J85: 312 | K85: 0 | L85: 0 | M85: 0 | N85: 0 | O85: 0 | P85: 0 | Q85: 1373058 | R85: 1640628.4 | S85: 2157442.6 | T85: 3340871.4 | U85: 3606823.6 | V85: 3696089.5 | W85: 15814913.5
A86: 1.1.1.6. | B86: Мероприятие «Предоставление государственной социальной помощи» | C86: Х | D86: 1 | E86: Х | F86: 2014-2025 | G86: Министерство труда и социальной защиты населения Забайкальского края | H86: Х | I86: Х | J86: Х | K86: Х | L86: Х | M86: Х | N86: Х | O86: Х | P86: Х | Q86: Х | R86: Х | S86: Х | T86: Х | U86: Х | V86: Х | W86: Х
B87: финансирование за счет краевого бюджета | C87: тыс. рублей | D87: Х | E87: Х | F87: Х | G87: Х | H87: 1003 | I87: 17 1 01 82602 | J87: Х | K87: =K88+K89 -> 60242.7 | L87: 76629.2 | M87: 52599.92 | N87: 70924.6 | O87: 70565.23 | P87: 43509 | Q87: 40243.129 | R87: 6354.4 | S87: 2660.5 | T87: 3554.8 | U87: 2670.1 | V87: =V88+V89 -> 3504.7 | W87: 433458.279
H88: 1003 | I88: 17 1 01 82602 | J88: 244 | K88: 643.2 | L88: 785.8 | M88: 533.94 | N88: 858.1 | O88: 253.9 | P88: 439.2 | Q88: 200.895 | R88: 162.1 | S88: 94 | T88: 94.8 | U88: 17.5 | V88: 27.9 | W88: 4111.335
H89: 1003 | I89: 17 1 01 82602 | J89: 313 | K89: 59599.5 | L89: 75843.4 | M89: 52065.98 | N89: 70066.5 | O89: 70311.33 | P89: 43069.8 | Q89: 40042.234 | R89: 6192.3 | S89: 2566.5 | T89: 3460 | U89: 2652.6 | V89: 3476.8 | W89: 429346.944
H90: 1003 | I90: 17 1 01 R4040 | J90: 244 | K90: 0 | L90: 0 | M90: 0 | N90: 0 | O90: 0 | P90: 0 | Q90: 0 | R90: 1958.6 | S90: 0 | T90: 0 | U90: 0 | V90: 0 | W90: 1958.6
H91: 1003 | I91: 17 1 01 R4040 | J91: 323 | K91: 0 | L91: 0 | M91: 0 | N91: 0 | O91: 0 | P91: 0 | Q91: 0 | R91: 504 | S91: 0 | T91: 0 | U91: 0 | V91: 0 | W91: 504
H92: 1003 | I92: 17 1 01 R4040 | J92: 313 | K92: 0 | L92: 0 | M92: 0 | N92: 0 | O92: 0 | P92: 0 | Q92: 0 | R92: 16877.8 | S92: 32309.4 | T92: 44046.7 | U92: 44046.7 | V92: 55044.6 | W92: 192325.2
B93: финансирование за счет федерального бюджета | C93: тыс. рублей | D93: Х | E93: Х | F93: Х | G93: Х | H93: 1003 | I93: 17 1 01 R4040 | J93: 244 | K93: 0 | L93: 0 | M93: 0 | N93: 0 | O93: 0 | P93: 0 | Q93: 0 | R93: 30685.5 | S93: 0 | T93: 0 | U93: 0 | V93: 0 | W93: 30685.5
H94: 1003 | I94: 17 1 01 R4040 | J94: 323 | K94: 0 | L94: 0 | M94: 0 | N94: 0 | O94: 0 | P94: 0 | Q94: 0 | R94: 7896 | S94: 0 | T94: 0 | U94: 0 | V94: 0 | W94: 7896
H95: 1003 | I95: 17 1 01 R4040 | J95: 313 | K95: 0 | L95: 0 | M95: 0 | N95: 0 | O95: 0 | P95: 0 | Q95: 0 | R95: 264419.3 | S95: 326683.7 | T95: 445361 | U95: 445361 | V95: 445361 | W95: 1927186
A96: 1.1.1.7. | B96: Мероприятие «Предоставление социального пособия на погребение, возмещение расходов специализированным службам по вопросам похоронного дела» | C96: Х | D96: 1 | E96: Х | F96: 2014-2025 | G96: Министерство труда и социальной защиты населения Забайкальского края | H96: Х | I96: Х | J96: Х | K96: Х | L96: Х | M96: Х | N96: Х | O96: Х | P96: Х | Q96: Х | R96: Х | S96: Х | T96: Х | U96: Х | V96: Х | W96: Х
B97: финансирование за счет краевого бюджета | C97: тыс. рублей | D97: Х | E97: Х | F97: Х | G97: Х | H97: 1003 | I97: 17 1 01 82205 | J97: Х | K97: =K98+K99+K101 -> 15971.8 | L97: =L98+L99+L101 -> 16765.9 | M97: =M98+M99+M101 -> 11784.37536 | N97: =N98+N99+N101+N100 -> 17790.47 | O97: 16578.6 | P97: 15548.4 | Q97: 18342.8 | R97: 19989.2 | S97: 19942.8 | T97: 22078.6 | U97: 16930.4 | V97: =V98+V99+V101+V100 -> 22091.7 | W97: 213815.0454
H98: 1003 | I98: 17 1 01 82205 | J98: 323 | K98: 1713.3 | L98: 1290.9 | M98: 1111.37565 | N98: 201.8 | O98: 0 | P98: 0 | Q98: 0 | R98: 0 | S98: 0 | T98: 0 | U98: 0 | V98: 0 | W98: 4317.37565
H99: 1003 | I99: 17 1 01 82205 | J99: 244 | K99: 239.1 | L99: 255.5 | M99: 216.64 | N99: 241.4 | O99: 291.4 | P99: 230.4 | Q99: 289 | R99: 322.5 | S99: 300 | T99: 332.4 | U99: 254.8 | V99: 332.2 | W99: 3305.34
H100: 1003 | I100: 17 1 01 82205 | J100: 811 | K100: 0 | L100: 0 | M100: 0 | N100: 1238.17 | O100: 1577.5 | P100: 880.4 | Q100: 1725.8 | R100: 1390 | S100: 1420 | T100: 1975.3 | U100: 1518.4 | V100: 1892.8 | W100: 13618.37
H101: 1003 | I101: 17 1 01 82205 | J101: 313 | K101: 14019.4 | L101: 15219.5 | M101: 10456.35971 | N101: 16109.1 | O101: 14709.7 | P101: 14437.6 | Q101: 16328 | R101: 18276.7 | S101: 18222.8 | T101: 19770.9 | U101: 15157.2 | V101: 19866.7 | W101: 192573.9597
A102: 1.1.1.8. | B102: Мероприятие «Предоставление ежемесячных денежных выплат почетным гражданам» | C102: Х | D102: 1 | E102: Х | F102: 2014-2025 | G102: Министерство труда и социальной защиты населения Забайкальского края | H102: Х | I102: Х | J102: Х | K102: Х | L102: Х | M102: Х | N102: Х | O102: Х | P102: Х | Q102: Х | R102: Х | S102: Х | T102: Х | U102: Х | V102: Х | W102: Х
B103: финансирование за счет краевого бюджета | C103: тыс. рублей | D103: Х | E103: Х | F103: Х | G103: Х | H103: 1003 | I103: 17 1 01 89505 | J103: Х | K103: =K104+K105 -> 1644.9 | L103: 1353.5 | M103: 1039.43 | N103: 1620.4 | O103: 1240 | P103: 1296 | Q103: 1273 | R103: =R104+R105 -> 1300.6 | S103: =S104+S105 -> 1165.6 | T103: =T104+T105 -> 1251 | U103: =U104+U105 -> 961.6 | V103: =V104+V105 -> 1198.8 | W103: 15344.83
H104: 1003 | I104: 17 1 01 89505 | J104: 244 | K104: 9.6 | L104: 6.9 | M104: 5.03 | N104: 10.7 | O104: 6 | P104: 5.2 | Q104: 5.8 | R104: 4.6 | S104: 4.6 | T104: 9 | U104: 6.9 | V104: 8.6 | W104: 82.93
H105: 1003 | I105: 17 1 01 89505 | J105: 313 | K105: 1635.3 | L105: 1346.6 | M105: 1034.4 | N105: 1609.7 | O105: 1234 | P105: 1290.8 | Q105: 1267.2 | R105: 1296 | S105: 1161 | T105: 1242 | U105: 954.7 | V105: 1190.2 | W105: 15261.9
A106: 1.1.1.9. | B106: Мероприятие «Предоставление адресной социальной помощи к социально значимым мероприятиям» | C106: Х | D106: 1 | E106: Х | F106: 2014-2025 | G106: Министерство труда и социальной защиты населения Забайкальского края | H106: Х | I106: Х | J106: Х | K106: Х | L106: Х | M106: Х | N106: Х | O106: Х | P106: Х | Q106: Х | R106: Х | S106: Х | T106: Х | U106: Х | V106: Х | W106: Х
B107: финансирование за счет краевого бюджета | C107: тыс. рублей | D107: Х | E107: Х | F107: Х | G107: Х | H107: 1003 | I107: 17 1 01 02514 | J107: Х | K107: =K108+K109 -> 7749.4 | L107: =L108+L109 -> 14576.1 | M107: 28856.1665 | N107: 5693.27 | O107: 5248.4 | P107: 39620.1 | Q107: =Q108+Q109 -> 35040.95 | R107: 30808.1 | S107: =S108+S109 -> 24735.3 | T107: =T108+T109 -> 24498.5 | U107: =U108+U109 -> 19089.6 | V107: =V108+V109 -> 14830.6 | W107: =SUM(K107:S107)+T107+U107+V107 -> 250746.4865
H108: 1003 | I108: 17 1 01 02514 | J108: 244 | K108: 52.7 | L108: 166.1 | M108: 349.1665 | N108: 53.27 | O108: 50.9 | P108: 384.2 | Q108: 343.45 | R108: 268.9 | S108: 210 | T108: 218.5 | U108: 170.3 | V108: 132.3 | W108: 2399.7865
H109: 1003 | I109: 17 1 01 02514 | J109: 321 | K109: 7696.7 | L109: 14410 | M109: 28507 | N109: 5640 | O109: 5197.5 | P109: 39235.9 | Q109: 34697.5 | R109: 30539.2 | S109: 24525.3 | T109: 24280 | U109: 18919.3 | V109: 14698.3 | W109: 248346.7
H110: 1003 | I110: 5140500 | J110: Х | K110: 0 | L110: =L111+L112 -> 0 | M110: =M111+M112 -> 0 | N110: =N111+N112 -> 0 | O110: 0 | P110: 0 | Q110: 0 | R110: 0 | S110: 0 | T110: 0 | U110: 0 | V110: 0 | W110: 0
H111: 1003 | I111: 5140500 | J111: 244 | K111: 0 | L111: 0 | M111: 0 | N111: 0 | O111: 0 | P111: 0 | Q111: 0 | R111: 0 | S111: 0 | T111: 0 | U111: 0 | V111: 0 | W111: 0
H112: 1003 | I112: 5140500 | J112: 321 | K112: 0 | L112: 0 | M112: 0 | N112: 0 | O112: 0 | P112: 0 | Q112: 0 | R112: 0 | S112: 0 | T112: 0 | U112: 0 | V112: 0 | W112: 0
A113: 1.1.1.10. | B113: Мероприятие «Доплаты к пенсиям государственных служащих» | C113: Х | D113: 1 | E113: Х | F113: 2014-2025 | G113: Министерство труда и социальной защиты населения Забайкальского края | H113: Х | I113: Х | J113: Х | K113: Х | L113: Х | M113: Х | N113: Х | O113: Х | P113: Х | Q113: Х | R113: Х | S113: Х | T113: Х | U113: Х | V113: Х | W113: Х
B114: финансирование за счет краевого бюджета | C114: тыс. рублей | D114: Х | E114: Х | F114: Х | G114: Х | H114: 1001 | I114: 17 1 01 09100 | J114: Х | K114: =K115+K116 -> 126500.4 | L114: 131694.8 | M114: 167708.1 | N114: 157132.8 | O114: 176311.7 | P114: 189670.8 | Q114: =Q115+Q116 -> 207029 | R114: 216462.4 | S114: =S115+S116 -> 224860.3 | T114: =T115+T116 -> 233350.2 | U114: =U115+U116 -> 179376.2 | V114: =V115+V116 -> 223608.9 | W114: 2233705.6
H115: 1001 | I115: 17 1 01 09100 | J115: 244 | K115: 170 | L115: 153.2 | M115: 56 | N115: 47.7 | O115: 36.9 | P115: 41.9 | Q115: 55.4 | R115: 55 | S115: 39.6 | T115: 57.7 | U115: 44.4 | V115: 55.3 | W115: 813.1
H116: 1001 | I116: 17 1 01 09100 | J116: 321 | K116: 126330.4 | L116: 131541.6 | M116: 167652.1 | N116: 157085.1 | O116: 176274.8 | P116: 189628.9 | Q116: 206973.6 | R116: 216407.4 | S116: 224820.7 | T116: 233292.5 | U116: 179331.8 | V116: 223553.6 | W116: 2232892.5
A117: 1.1.1.11. | B117: Мероприятие «Предоставление ежемесячной денежной выплаты приемным семьям для граждан пожилого возраста и инвалидов» | C117: Х | D117: 1 | E117: Х | F117: 2014-2025 | G117: Министерство труда и социальной защиты населения Забайкальского края | H117: Х | I117: Х | J117: Х | K117: Х | L117: Х | M117: Х | N117: Х | O117: Х | P117: Х | Q117: Х | R117: Х | S117: Х | T117: Х | U117: Х | V117: Х | W117: Х
B118: финансирование за счет краевого бюджета | C118: тыс. рублей | D118: Х | E118: Х | F118: Х | G118: Х | H118: 1003 | I118: 17 1 01 82607 | J118: 313 | K118: 7401.1 | L118: 11460 | M118: 11750 | N118: 10905.8 | O118: 11715.9 | P118: 11210.1 | Q118: 12063.5 | R118: 12324.3 | S118: 11711.4 | T118: 12803.4 | U118: 9815.7 | V118: 12865.5 | W118: 136026.7
H119: 1003 | I119: 5058607 | J119: Х | K119: 0 | L119: 0 | M119: 0 | N119: 0 | O119: 0 | P119: 0 | Q119: 0 | R119: 0 | S119: 0 | T119: 0 | U119: 0 | V119: 0 | W119: 0
H120: 1003 | I120: 5058607 | J120: Х | K120: 0 | L120: 0 | M120: 0 | N120: 0 | O120: 0 | P120: 0 | Q120: 0 | R120: 0 | S120: 0 | T120: 0 | U120: 0 | V120: 0 | W120: 0
A121: 1.1.1.12. | B121: Мероприятие «Компенсация стоимости произведенных затрат на пристройку пандуса, балкона инвалидам, детям-инвалидам» | C121: Х | D121: 1 | E121: Х | F121: 2014-2025 | G121: Министерство труда и социальной защиты населения Забайкальского края | H121: Х | I121: Х | J121: Х | K121: Х | L121: Х | M121: Х | N121: Х | O121: Х | P121: Х | Q121: Х | R121: Х | S121: Х | T121: Х | U121: Х | V121: Х | W121: Х
B122: финансирование за счет краевого бюджета | C122: тыс. рублей | D122: Х | E122: Х | F122: Х | G122: Х | H122: 1003 | I122: 17 1 01 82608 | J122: Х | K122: =K123+K124 -> 200.4 | L122: 18.3 | M122: 317.69 | N122: 373.1 | O122: 542.3 | P122: 688.7 | Q122: =Q123+Q124 -> 709.352 | R122: 304.2 | S122: =S123+S124 -> 25.7 | T122: =T123+T124 -> 401 | U122: =U123+U124 -> 307.5 | V122: =V123+V124 -> 402.9 | W122: 4291.142
H123: 1003 | I123: 17 1 01 82608 | J123: 244 | K123: 3 | L123: 0.3 | M123: 5.14 | N123: 8.5 | O123: 9.4 | P123: 13.8 | Q123: 9.352 | R123: 4.2 | S123: 0.4 | T123: 1 | U123: 0.8 | V123: 1 | W123: 56.892
H124: 1003 | I124: 17 1 01 82608 | J124: 313 | K124: 197.4 | L124: 18 | M124: 312.55 | N124: 364.6 | O124: 532.9 | P124: 674.9 | Q124: 700 | R124: 300 | S124: 25.3 | T124: 400 | U124: 306.7 | V124: 401.9 | W124: 4234.25
A125: 1.1.1.13. | B125: Мероприятие «Компенсация стоимости проезда к месту лечения и обратно инвалидам, нуждающимся в процедурах гемодиализа» | C125: Х | D125: 1 | E125: Х | F125: 2014-2025 | G125: Министерство труда и социальной защиты населения Забайкальского края | H125: Х | I125: Х | J125: Х | K125: Х | L125: Х | M125: Х | N125: Х | O125: Х | P125: Х | Q125: Х | R125: Х | S125: Х | T125: Х | U125: Х | V125: Х | W125: Х
B126: финансирование за счет краевого бюджета | C126: тыс. рублей | D126: Х | E126: Х | F126: Х | G126: Х | H126: 1003 | I126: 17 1 01 82609 | J126: Х | K126: =K127+K128 -> 279.1 | L126: 2126.9 | M126: 2237.77 | N126: 3904.96 | O126: 3799.3 | P126: 4552.4 | Q126: =Q127+Q128 -> 4598.93 | R126: 4356.9 | S126: =S127+S128 -> 4811 | T126: =T127+T128 -> 5474 | U126: =U127+U128 -> 4196.6 | V126: =V127+V128 -> 5500.5 | W126: 45838.36
H127: 1003 | I127: 17 1 01 82609 | J127: 244 | K127: 6.4 | L127: 33.4 | M127: 32.94 | N127: 83.36 | O127: 42.1 | P127: 50.4 | Q127: 69.93 | R127: 67.1 | S127: 48.7 | T127: 14 | U127: 10.7 | V127: 14 | W127: 473.03
H128: 1003 | I128: 17 1 01 82609 | J128: 313 | K128: 272.7 | L128: 2093.5 | M128: 2204.83 | N128: 3821.6 | O128: 3757.2 | P128: 4502 | Q128: 4529 | R128: 4289.8 | S128: 4762.3 | T128: 5460 | U128: 4185.9 | V128: 5486.5 | W128: 45365.33
A129: 1.1.1.14. | B129: Мероприятие «Расходы на реализацию Закона Забайкальского края «О снижении размера оплаты протезно-ортопедических изделий отдельным категориям граждан» | C129: Х | D129: 1 | E129: Х | F129: 2014-2025 | G129: Министерство труда и социальной защиты населения Забайкальского края | H129: Х | I129: Х | J129: Х | K129: Х | L129: Х | M129: Х | N129: Х | O129: Х | P129: Х | Q129: Х | R129: Х | S129: Х | T129: Х | U129: Х | V129: Х | W129: Х
B130: финансирование за счет краевого бюджета | C130: тыс. рублей | D130: Х | E130: Х | F130: Х | G130: Х | H130: 1003 | I130: 17 1 01 82603 | J130: 323 | K130: 1 | L130: 38.2 | M130: 0 | N130: 32 | O130: 1 | P130: 1 | Q130: 1 | R130: 0 | S130: 0 | T130: 1 | U130: 0.8 | V130: 1.2 | W130: 77.2
A131: 1.1.1.15. | B131: Мероприятие «Осуществление ежегодной денежной выплаты лицам, награжденным нагрудным знаком «Почетный донор России» | C131: Х | D131: 1 | E131: Х | F131: 2014-2025 | G131: Министерство труда и социальной защиты населения Забайкальского края | H131: Х | I131: Х | J131: Х | K131: Х | L131: Х | M131: Х | N131: Х | O131: Х | P131: Х | Q131: Х | R131: Х | S131: Х | T131: Х | U131: Х | V131: Х | W131: Х
B132: финансирование за счет федерального бюджета | C132: тыс. рублей | D132: Х | E132: Х | F132: Х | G132: Х | H132: 1003 | I132: 17 1 01 52200 | J132: Х | K132: =K133+K136+K134+K135 -> 22486.4 | L132: =L133+L136+L134 -> 23310.6 | M132: =M133+M136+M134 -> 20996.1 | N132: =N133+N136+N134 -> 26094.6 | O132: =O133+O134+O135 -> 28949.4 | P132: 26842.4 | Q132: =Q133+Q134+Q135 -> 28599.259 | R132: 30657 | S132: 33425.5 | T132: 34748 | U132: 36138 | V132: =V133+V134+V135 -> 37582.7 | W132: 349829.959
B133: Пособия, компенсации, меры социальной поддержки по публичным нормативным обязательствам | C133: тыс. рублей | D133: Х | E133: Х | F133: Х | G133: Х | H133: 1003 | I133: 17 1 01 52200 | J133: 313 | K133: 22146.4 | L133: 22963.6 | M133: 20691.97508 | N133: 25710.6 | O133: 28524.9 | P133: 26453.8 | Q133: 28184.259 | R133: 30221.2 | S133: 32931.5 | T133: 34234.5 | U133: 35604 | V133: 37027.3 | W133: 344694.0341
B134: Прочая закупка товаров, работ и услуг для государственных нужд | C134: тыс. рублей | D134: Х | E134: Х | F134: Х | G134: Х | H134: 1003 | I134: 17 1 01 52200 | J134: 244 | K134: 10 | L134: 7 | M134: 304.12492 | N134: 384 | O134: 294.5 | P134: 388.6 | Q134: 415 | R134: 435.8 | S134: 494 | T134: 179.7 | U134: 186.9 | V134: 194.4 | W134: 3294.02492
C135: тыс. рублей | D135: Х | E135: Х | F135: Х | G135: Х | H135: 1003 | I135: 17 1 01 52200 | J135: 242 | K135: 0 | L135: 0 | M135: 0 | N135: 0 | O135: 130 | P135: 0 | Q135: 0 | R135: 0 | S135: 0 | T135: 333.8 | U135: 347.1 | V135: 361 | W135: 1171.9
B136: Приобретение товаров, работ, услуг в пользу граждан в целях их социального обеспечения | C136: тыс. рублей | D136: Х | E136: Х | F136: Х | G136: Х | H136: 1003 | I136: 17 1 01 52200 | J136: 323 | K136: 330 | L136: 340 | M136: 0 | N136: 0 | O136: 0 | P136: 0 | Q136: 0 | R136: 0 | S136: 0 | T136: 0 | U136: 0 | V136: 0 | W136: 670
A137: 1.1.1.16. | B137: Мероприятие «Государственные единовременные пособия и ежемесячные денежные компенсации гражданам при возникновении поствакцинальных осложнений» | C137: Х | D137: 1 | E137: Х | F137: 2014-2025 | G137: Министерство труда и социальной защиты населения Забайкальского края | H137: Х | I137: Х | J137: Х | K137: Х | L137: Х | M137: Х | N137: Х | O137: Х | P137: Х | Q137: Х | R137: Х | S137: Х | T137: Х | U137: Х | V137: Х | W137: Х
B138: финансирование за счет федерального бюджета | C138: тыс. рублей | D138: Х | E138: Х | F138: Х | G138: Х | H138: 1003 | I138: 17 1 01 52400 | J138: 244 | K138: 0 | L138: 0 | M138: 0 | N138: 0 | O138: 0 | P138: 0 | Q138: 0 | R138: 0 | S138: 0 | T138: 1 | U138: 1 | V138: 1.1 | W138: =SUM(T138:V138) -> 3.1
B139: финансирование за счет федерального бюджета | C139: тыс. рублей | D139: Х | E139: Х | F139: Х | G139: Х | H139: 1003 | I139: 17 1 01 52400 | J139: 313 | K139: 128 | L139: 147.4 | M139: 81.5 | N139: 90.8 | O139: 92.9 | P139: 101.6 | Q139: 94 | R139: 79.6 | S139: 100.4 | T139: 66.4 | U139: 68.6 | V139: 71 | W139: 1122.2
A140: 1.1.1.17. | B140: Мероприятие «Оплата жилищно-коммунальных услуг отдельным категориям граждан» | C140: Х | D140: 1 | E140: Х | F140: 2014-2025 | G140: Министерство труда и социальной защиты населения Забайкальского края | H140: Х | I140: Х | J140: Х | K140: Х | L140: Х | M140: Х | N140: Х | O140: Х | P140: Х | Q140: Х | R140: Х | S140: Х | T140: Х | U140: Х | V140: Х | W140: Х
B141: финансирование за счет федерального бюджета | C141: тыс. рублей | D141: Х | E141: Х | F141: Х | G141: Х | H141: 1003 | I141: 17 1 01 52500 | J141: Х | K141: =K143+K144 -> 612232.2 | L141: =L143+L144 -> 548898.4 | M141: =M143+M144+M142 -> 584338.8061 | N141: 540202.48 | O141: 526884.1 | P141: 538348.9 | Q141: =Q143+Q144+Q142 -> 528727.2 | R141: 506145.9 | S141: =S143+S144+S142 -> 501433.2 | T141: =T143+T144+T142 -> 413208.1 | U141: =U143+U144+U142 -> 413152.2 | V141: =V143+V144+V142 -> 413132.2 | W141: 6126703.686
B142: Прочая закупка товаров, работ и услуг для государственных нужд | C142: тыс. рублей | D142: Х | E142: Х | F142: Х | G142: Х | H142: 1003 | I142: 17 1 01 52500 | J142: 242 | K142: 0 | L142: 0 | M142: 495 | N142: 0 | O142: 2950 | P142: 4250 | Q142: 3608.1 | R142: 3906.7 | S142: 4426.4 | T142: 2216.6 | U142: 2244 | V142: 2257.8 | W142: 26354.6
C143: тыс. рублей | D143: Х | E143: Х | F143: Х | G143: Х | H143: 1003 | I143: 17 1 01 52500 | J143: 244 | K143: =4959+3979 -> 8938 | L143: =4277+3700.7 -> 7977.7 | M143: 7259.75932 | N143: 7431.8 | O143: 4241.4 | P143: 3411.2 | Q143: 3810 | R143: 3573.3 | S143: 2983.9 | T143: 3889.9 | U143: 3861.7 | V143: 3847.6 | W143: 61226.25932
B144: Пособия по социальной помощи населению | C144: тыс.рублей | D144: Х | E144: Х | F144: Х | G144: Х | H144: 1003 | I144: 17 1 01 52500 | J144: 313 | K144: 603294.2 | L144: 540920.7 | M144: 576584.0468 | N144: 532770.68 | O144: 519692.7 | P144: 530687.7 | Q144: 521309.1 | R144: 498665.9 | S144: 494022.9 | T144: 407101.6 | U144: 407046.5 | V144: 407026.8 | W144: 6039122.827
A145: 1.1.1.18. | B145: Мероприятие «Выплаты инвалидам компенсаций страховых премий по договорам обязательного страхования гражданской ответственности владельцев транспортных средств» | C145: Х | D145: 1 | E145: Х | F145: 2014-2025 | G145: Министерство труда и социальной защиты населения Забайкальского края | H145: Х | I145: Х | J145: Х | K145: Х | L145: Х | M145: Х | N145: Х | O145: Х | P145: Х | Q145: Х | R145: Х | S145: Х | T145: Х | U145: Х | V145: Х | W145: Х
B146: финансирование за счет федерального бюджета | C146: тыс. рублей | D146: Х | E146: Х | F146: Х | G146: Х | H146: 1003 | I146: 17 1 01 52800 | J146: Х | K146: =K147+K148 -> 548.1 | L146: 67 | M146: 44 | N146: 66.4 | O146: 48.2 | P146: 8.7 | Q146: 9.8 | R146: 10.5 | S146: 0 | T146: 0 | U146: 0 | V146: =V147+V148 -> 0 | W146: 802.7
B147: Прочая закупка товаров, работ и услуг для государственных нужд | C147: тыс. рублей | D147: Х | E147: Х | F147: Х | G147: Х | H147: 1003 | I147: 17 1 01 52800 | J147: 244 | K147: 0.1 | L147: 1.1 | M147: 0.2 | N147: 0.2 | O147: 0.4 | P147: 0.1 | Q147: 0.1 | R147: 0.1 | S147: 0 | T147: 0 | U147: 0 | V147: 0 | W147: 2.3
B148: Пособия по социальной помощи населению | C148: тыс. рублей | D148: Х | E148: Х | F148: Х | G148: Х | H148: 1003 | I148: 17 1 01 52800 | J148: 313 | K148: 548 | L148: 65.9 | M148: 43.8 | N148: 66.2 | O148: 47.8 | P148: 8.6 | Q148: 9.7 | R148: 10.4 | S148: 0 | T148: =S148 -> 0 | U148: =T148 -> 0 | V148: =U148 -> 0 | W148: 800.4
A149: 1.1.1.19. | B149: Мероприятие «Обеспечение жильем отдельных категорий граждан» | C149: Х | D149: 1 | E149: Х | F149: 2014-2025 | G149: Министерство труда и социальной защиты населения Забайкальского края | H149: Всего | K149: =K150+K152 -> 160905.6 | L149: =L150+L152 -> 128107.5 | M149: =M150+M152 -> 87752.2 | N149: =N150+N152 -> 89009.1 | O149: =O150+O152+O153 -> 28890.9 | P149: 81559.8 | Q149: =Q150+Q152+Q153+Q151 -> 21026.9 | R149: =R150+R152+R153+R154 -> 56527.2 | S149: 77282.5 | T149: 36554.8 | U149: 38993.4 | V149: =V150+V152+V153 -> 38848.3 | W149: 845458.2
B150: финансирование за счет федерального бюджета | C150: тыс. рублей | D150: Х | E150: Х | F150: Х | G150: Х | H150: 1003 | I150: 17 1 01 51340 | J150: 322 | K150: 133653.2 | L150: 98535 | M150: 59701.9 | N150: 57377.9 | O150: 13707.3 | P150: 51011.4 | Q150: 0 | R150: 22921.4 | S150: 18192.1 | T150: 5290.4 | U150: 5281.9 | V150: 5273 | W150: 470945.5
D151: Х | E151: Х | F151: Х | G151: Х | H151: 1003 | I151: 17 1 01 5134F | J151: 322 | K151: 0 | L151: 0 | M151: 0 | N151: 0 | O151: 0 | P151: 0 | Q151: 2046.5 | R151: 0 | S151: 0 | T151: 0 | U151: 0 | V151: 0 | W151: 2046.5
D152: Х | E152: Х | F152: Х | G152: Х | H152: 1003 | I152: 17 1 01 51350 | J152: 322 | K152: 27252.4 | L152: 29572.5 | M152: 28050.3 | N152: 31631.2 | O152: 5218.3 | P152: 10393.2 | Q152: 7412.4 | R152: 11888.1 | S152: 10811.6 | T152: 7028.6 | U152: 6999.1 | V152: 6765.3 | W152: 183023
D153: Х | E153: Х | F153: Х | G153: Х | H153: 1003 | I153: 17 1 01 51760 | J153: 322 | K153: 0 | L153: 0 | M153: 0 | N153: 0 | O153: 9965.3 | P153: 20155.2 | Q153: 11568 | R153: 15953.1 | S153: 48278.8 | T153: 24235.8 | U153: 26712.4 | V153: 26810 | W153: 183678.6
B154: финансирование за счет краевого бюджета | C154: Х | D154: Х | E154: Х | F154: Х | G154: Х | H154: 1003 | I154: 17 1 01 64340 | J154: 322 | K154: 0 | L154: 0 | M154: 0 | N154: 0 | O154: 0 | P154: 0 | Q154: 0 | R154: 5764.6 | S154: 0 | T154: 0 | U154: 0 | V154: 0 | W154: 5764.6
A155: 1.1.1.20. | B155: Мероприятие «Предоставление отдельных мер социальной поддержки граждан, подвергшихся воздействию радиации» | C155: Х | D155: 1 | E155: Х | F155: 2014-2025 | G155: Министерство труда и социальной защиты населения Забайкальского края | H155: Всего | K155: 0 | L155: =L156+L157 -> 1818 | M155: 2089.6 | N155: 1834.9 | O155: 1542.6 | P155: 1448 | Q155: 1302.6 | R155: 1485.7 | S155: 0 | T155: 0 | U155: 0 | V155: =V156+V157 -> 0 | W155: 11521.4
B156: финансирование за счет федерального бюджета | C156: тыс. рублей | D156: Х | E156: Х | F156: Х | G156: Х | H156: 1003 | I156: 17 1 01 51370 | J156: 244 | K156: 0 | L156: 30 | M156: 0 | N156: 0 | O156: 0 | P156: 0 | Q156: 0 | R156: 0 | S156: 0 | T156: 0 | U156: 0 | V156: 0 | W156: 30
D157: Х | E157: Х | F157: Х | G157: Х | H157: 1003 | I157: 17 1 01 51370 | J157: 313 | K157: 0 | L157: 1788 | M157: 2089.6 | N157: 1834.9 | O157: 1542.6 | P157: 1448 | Q157: 1302.6 | R157: 1485.7 | S157: 0 | T157: 0 | U157: 0 | V157: 0 | W157: 11491.4
A158: 1.1.1.21. | B158: Мероприятие «Выплата единовременной денежной компенсации реабилитированным лицам» | C158: Х | D158: 1 | E158: Х | F158: 2014-2025 | G158: Министерство труда и социальной защиты населения Забайкальского края | H158: Всего | K158: 0 | L158: =L159+L160 -> 20 | M158: 0 | N158: 0 | O158: 0 | P158: 0 | Q158: 0 | R158: 0 | S158: 0 | T158: 0 | U158: 0 | V158: 0 | W158: 20
B159: финансирование за счет федерального бюджета | C159: тыс. рублей | D159: Х | E159: Х | F159: Х | G159: Х | H159: 1003 | I159: 17 1 01 53000 | J159: 244 | K159: 0 | L159: 0 | M159: 0 | N159: 0 | O159: 0 | P159: 0 | Q159: 0 | R159: 0 | S159: 0 | T159: 0 | U159: 0 | V159: 0 | W159: 0
D160: Х | E160: Х | F160: Х | G160: Х | H160: 1003 | I160: 17 1 01 53000 | J160: 313 | K160: 10 | L160: 20 | M160: 0 | N160: 0 | O160: 0 | P160: 0 | Q160: 0 | R160: 0 | S160: 0 | T160: 0 | U160: 0 | V160: 0 | W160: 30
A161: 1.1.1.22. | B161: Мероприятие «Компенсация отдельным категориям граждан оплаты взноса на капитальный ремонт общего имущества в многоквартирном доме» | C161: Х | D161: 1 | E161: Х | F161: 2014-2025 | G161: Министерство труда и социальной защиты населения Забайкальского края | H161: Всего | K161: 0 | L161: 0 | M161: =M164+M165+M166 -> 9507.117 | N161: =N164+N165+N166 -> 11685.8 | O161: =O164+O165+O166+O162+O163 -> 13875.83 | P161: 15312.6 | Q161: 18346.3 | R161: 19877.1 | S161: 20841.1 | T161: 21587.5 | U161: 18050.7 | V161: =V164+V165+V166+V162+V163 -> 22616.2 | W161: 171700.247
C162: тыс. рублей | D162: Х | E162: Х | F162: Х | G162: Х | H162: 1003 | I162: 17 1 01 84062 | J162: 244 | K162: 0 | L162: 0 | M162: 0 | N162: 0 | O162: 186 | P162: 193.2 | Q162: 222.9 | R162: 243.3 | S162: 251.1 | T162: 279.9 | U162: 214.6 | V162: 281.3 | W162: 1872.3
D163: Х | E163: Х | F163: Х | G163: Х | H163: 1003 | I163: 17 1 01 84062 | J163: 313 | K163: 0 | L163: 0 | M163: 0 | N163: 0 | O163: 7683.73 | P163: 8095 | Q163: 9391.9 | R163: 12024.2 | S163: 13589.9 | T163: 14704.5 | U163: 11124.7 | V163: 15372.9 | W163: 91986.83
B164: финансирование за счет краевого бюджета | D164: Х | E164: Х | F164: Х | G164: Х | H164: 1003 | I164: 17 1 01 R4620 | J164: 244 | K164: 0 | L164: 0 | M164: 2.68 | N164: 186 | O164: 0 | P164: 0 | Q164: 0 | R164: 0 | S164: 0 | T164: 0 | U164: 0 | V164: 0 | W164: 188.68
D165: Х | E165: Х | F165: Х | G165: Х | H165: 1003 | I165: 17 1 01 R4620 | J165: 313 | K165: 0 | L165: 0 | M165: 37.94 | N165: 805 | O165: 360.4 | P165: 421.5 | Q165: 525.6 | R165: 456.6 | S165: 630 | T165: 594.3 | U165: 604 | V165: 765.8 | W165: 5201.14
B166: финансирование за счет федерального бюджета | C166: тыс. рублей | D166: Х | E166: Х | F166: Х | G166: Х | H166: 1003 | I166: 17 1 01 R4620 | J166: 313 | K166: 0 | L166: 0 | M166: 9466.497 | N166: 10694.8 | O166: 5645.7 | P166: 6602.9 | Q166: 8205.9 | R166: 7153 | S166: 6370.1 | T166: 6008.8 | U166: 6107.4 | V166: 6196.2 | W166: 72451.297
A167: 1.1.1.23. | B167: Мероприятие «Компенсация расходов на погребение Героев Советского союза, Героев Российской Федерации, полных кавалеров ордена трудовой славы, Героев социалистического труда и полных кавалеров ордена Трудовой Славы» | C167: Х | D167: 1 | E167: Х | F167: 2014-2025 | G167: Министерство труда и социальной защиты населения Забайкальского края | H167: Всего | K167: 0 | L167: 0 | M167: =M169 -> 95.6 | N167: 198.5 | O167: 0 | P167: 0 | Q167: =Q169+Q168 -> 5783.6 | R167: 0 | S167: 0 | T167: 0 | U167: 0 | V167: =V169 -> 0 | W167: 6077.7
B168: финансирование за счет средств Фонда пенсионного и социального страхования Российской Федерации | C168: тыс. рублей | D168: Х | E168: Х | F168: Х | G168: Х | H168: 1003 | I168: 17 1 01 51980 | J168: 321 | K168: 0 | L168: 0 | M168: 0 | N168: 0 | O168: 0 | P168: 0 | Q168: 5783.6 | R168: 0 | S168: 81.7 | T168: 0 | U168: 0 | V168: 0 | W168: 5865.3
H169: 1003 | I169: 17 1 01 51980 | J169: 323 | K169: 0 | L169: 0 | M169: 95.6 | N169: 198.5 | O169: 0 | P169: 0 | Q169: 0 | R169: 0 | S169: 0 | T169: 0 | U169: 0 | V169: 0 | W169: 294.1
A170: 1.1.1.24. | B170: Мероприятие «Оказание адресной социальной помощи неработающим пенсионерам на частичное возмещение ущерба в связи с произошедшими чрезвычайными ситуациями и стихийными бедствиями» | C170: Х | D170: 1 | E170: Х | F170: 2014-2025 | G170: Министерство труда и социальной защиты населения Забайкальского края | H170: Всего | K170: 0 | L170: 0 | M170: 0 | N170: 0 | O170: =O171+O172+O173 -> 21321.425 | P170: 0 | Q170: 0 | R170: 0 | S170: 0 | T170: 0 | U170: 0 | V170: 0 | W170: 21321.425
B171: финансирование за счет средств Фонда пенсионного и социального страхования Российской Федерации | C171: тыс. рублей | D171: Х | E171: Х | F171: Х | G171: Х | H171: 1003 | I171: 17 1 01 R2090 | J171: 321 | K171: 0 | L171: 0 | M171: 0 | N171: 0 | O171: 19852.8 | P171: 0 | Q171: 0 | R171: 0 | S171: 0 | T171: 0 | U171: 0 | V171: 0 | W171: 19852.8
B172: финансирование за счет краевого бюджета | C172: тыс. рублей | D172: Х | E172: Х | F172: Х | G172: Х | H172: 1003 | I172: 17 1 01 R2090 | J172: 321 | K172: 0 | L172: 0 | M172: 0 | N172: 0 | O172: 1267.2 | P172: 0 | Q172: 0 | R172: 0 | S172: 0 | T172: 0 | U172: 0 | V172: 0 | W172: =SUM(K172:S172)+T172+U172+V172 -> 1267.2
D173: Х | E173: Х | F173: Х | G173: Х | H173: 1003 | I173: 17 1 01 02090 | J173: 244 | K173: 0 | L173: 0 | M173: 0 | N173: 0 | O173: 201.425 | P173: 0 | Q173: 0 | R173: 0 | S173: 0 | T173: 0 | U173: 0 | V173: 0 | W173: 201.425
A174: 1.1.2. | B174: Основное мероприятие «Создание условий для повышения адресности социальных выплат и развития нефинансовых способов поддержки населения» | C174: Х | D174: 1 | E174: Х | F174: 2014-2025 | G174: Министерство труда и социальной защиты населения Забайкальского края | H174: Х | I174: Х | J174: Х | K174: Х | L174: Х | M174: Х | N174: Х | O174: Х | P174: Х | Q174: Х | R174: Х | S174: Х | T174: Х | U174: Х | V174: Х | W174: Х
B175: финансирование за счет краевого бюджета | C175: тыс.рублей | D175: Х | E175: Х | F175: Х | G175: Х | H175: Х | I175: Х | J175: Х | K175: 0 | L175: 0 | M175: 0 | N175: 0 | O175: 0 | P175: 0 | Q175: 0 | R175: 0 | S175: 0 | T175: 0 | U175: 0 | V175: 0 | W175: 0
A176: 1.1.2-ПОМ1 | B176: Показатель «Количество заключенных социальных контрактов» | C176: шт. | D176: 1 | E176: Абсолютный показатель | F176: 2014-2025 | G176: Х | H176: Х | I176: Х | J176: Х | K176: 700 | L176: 850 | M176: 850 | N176: 850 | O176: 850 | P176: 750 | Q176: 750 | R176: 2534 | S176: 1900 | T176: 1950 | U176: 2000 | V176: 2000 | W176: Х
A177: 1.1.3. | B177: Основное мероприятие «Совершенствование информационного обеспечения предоставления мер социальной поддержки» | C177: Х | D177: 1 | E177: Х | F177: 2014-2025 | G177: Министерство труда и социальной защиты населения Забайкальского края | H177: Х | I177: Х | J177: Х | K177: Х | L177: Х | M177: Х | N177: Х | O177: Х | P177: Х | Q177: Х | R177: Х | S177: Х | T177: Х | U177: Х | V177: Х | W177: Х
B178: финансирование за счет краевого бюджета | C178: тыс.рублей | D178: Х | E178: Х | F178: Х | G178: Х | H178: Х | I178: Х | J178: Х | K178: 0 | L178: 0 | M178: 0 | N178: 0 | O178: 0 | P178: 0 | Q178: 0 | R178: 0 | S178: 0 | T178: 0 | U178: 0 | V178: 0 | W178: 0
A179: 1.1.3-ПОМ1 | B179: Показатель «Количество разработанных памяток, брошюр по вопросам предоставления мер социальной поддержки, в том числе по жизненной ситуации» | C179: шт. | D179: 1 | E179: Абсолютный показатель | F179: Х | G179: Х | H179: Х | I179: Х | J179: Х | K179: Не менее 1 | L179: Не менее 1 | M179: Не менее 1 | N179: Не менее 1 | O179: Не менее 1 | P179: Не менее 1 | Q179: Не менее 1 | R179: Не менее 1 | S179: Не менее 2 | T179: Не менее 2 | U179: Не менее 2 | V179: Не менее 2 | W179: Х
A180: 1.1.4. | B180: Основное мероприятие «Цифровая трансформация сферы социальной защиты» | C180: Х | D180: 1 | E180: Х | F180: 2022-2025 | G180: Министерство труда и социальной защиты населения Забайкальского края | H180: Х | I180: Х | J180: Х | K180: Х | L180: Х | M180: Х | N180: Х | O180: Х | P180: Х | Q180: Х | R180: Х | S180: 0 | T180: 0 | U180: 0 | V180: 0 | W180: Х
B181: финансирование за счет краевого бюджета | C181: тыс. рублей | D181: Х | E181: Х | F181: Х | G181: Х | H181: Х | I181: Х | J181: Х | K181: Х | L181: Х | M181: Х | N181: Х | O181: Х | P181: Х | Q181: Х | R181: Х | S181: 0 | T181: 0 | U181: 0 | V181: 0 | W181: 0
A182: 1.1.4.1. | B182: Мероприятие «Перевод мер социальной поддержки в формат «Социального казначейства» | C182: Х | D182: 1 | E182: Х | F182: 2022-2025 | G182: Министерство труда и социальной защиты населения Забайкальского края | H182: Х | I182: Х | J182: Х | K182: Х | L182: Х | M182: Х | N182: Х | O182: Х | P182: Х | Q182: Х | R182: Х | S182: Х | T182: Х | U182: Х | V182: Х | W182: Х
B183: финансирование за счет краевого бюджета | C183: тыс.рублей | D183: Х | E183: Х | F183: Х | G183: Х | H183: Х | I183: Х | J183: Х | K183: Х | L183: Х | M183: Х | N183: Х | O183: Х | P183: Х | Q183: Х | R183: Х | S183: Х | T183: Х | U183: Х | V183: Х | W183: Х
A184: 1.1.4.1.-ПМ1 | B184: Показатель «Доля массовых социально значимых государственных и муниципальных услуг в электронном виде, предоставляемых с использованием ЕПГУ, от общего количества таких услуг, предоставляемых в электронном виде» | C184: % | D184: 1 | E184: ГУ эл / ГУ *100, где: ГУ эл - количество государственных массовых социально значимых услуг, предоставляемых в электронном виде;ГУ - общее количество государственных массовых социально значимых услуг, предоставление которых организует Министерство. | F184: Х | G184: Х | H184: Х | I184: Х | J184: Х | K184: Х | L184: Х | M184: Х | N184: Х | O184: Х | P184: Х | Q184: Х | R184: Х | S184: 55 | T184: 75 | U184: 100 | V184: 100 | W184: Х
A185: 1.1.4.1.-ПМ2 | B185: Показатель «Доля сведений, необходимых для назначения региональных и муниципальных мер социальной поддержки, получаемых органом социальной защиты посредством межведомственного электронного взаимодействия» | C185: % | D185: 1 | E185: СВсмэв/СВ*100, где СВсмэв - количество сведений, полученных посредством СМЭВ, СВ - общее количество сведений, необходимых для назначения мер социальной поддержки | F185: Х | G185: Х | H185: Х | I185: Х | J185: Х | K185: Х | L185: Х | M185: Х | N185: Х | O185: Х | P185: Х | Q185: Х | R185: Х | S185: 30 | T185: 50 | U185: 80 | V185: 80 | W185: Х
A186: 1.1.4.1.-ПМ3 | B186: Доля региональных и муниципальных мер социальной поддержки, которые назначаются в срок, не превышающий 5 рабочих дней | C186: % | D186: 1 | E186: Ддней = Кдней / Кобщ * 100 %, где: Ддней -доля МСП, нормативными правовыми актами, регламентирующими их порядок предоставления, предусмотрен срок назначения 5 дней и менее; Кдней - количество МСП, нормативными правовыми актами, регламентирующими их порядок предоставления, предусмотрен срок назначения 5 дней и менее, шт.; Кобщ - общее количество МСП, на конец отчетного года, шт. | F186: Х | G186: Х | H186: Х | I186: Х | J186: Х | K186: Х | L186: Х | M186: Х | N186: Х | O186: Х | P186: Х | Q186: Х | R186: Х | S186: 3 | T186: 10 | U186: 18 | V186: 18 | W186: Х
A187: 1.1.4.1.-ПМ4 | B187: Доля мер социальной поддержки регионального уровня, которые граждане получают в проактивном формате по реквизитам счетов, направляемых гражданами посредством ЕПГУ в ЕГИССО | C187: % | D187: 1 | E187: Дрег = Ксогл / Кобщ * 100 %, где Крег - доля МСП, которые граждане получают в проактивном формате по реквизитам счетов, направляемых гражданам посредством ЕПГУ, проценты; Ксогл - количество МСП, которые получены гражданами за отчетный период в проактивном формате на основании согласий на использование реквизитов счетов, переданные оператором ЕСИА в ЕГИССО, шт.; Добщ - общее количество всех МСП, полученными гражданами за отчетный период, шт. | F187: Х | G187: Х | H187: Х | I187: Х | J187: Х | K187: Х | L187: Х | M187: Х | N187: Х | O187: Х | P187: Х | Q187: Х | R187: Х | S187: 3 | T187: 7 | U187: 9 | V187: 9 | W187: Х
A188: 1.1.4.1.-ПМ5 | B188: Доля региональных и муниципальных мер, заполненных в классификаторе мер социальной защиты ЕГИССО с привязкой к соответствующим жизненным событиям | C188: % | D188: 1 | E188: Джиз = Кмер / Кобщ * 100 %, где Джиз - доля МСЗ, право на которые возникает в связи с наступлением жизненных событий, перечень которых утвержден приказом Минтруда РФ, и которые привязаны к этим жизненным событиям в ЕГИССО, от общего количества действующих МСЗ в связи с наступлением таких жизненных событий.Кмер - количество МСЗ, право на которые возникает в связи с наступлением жизненных событий, и которые привязаны к этим жизненным событиям в ЕГИССО, шт.;Кобщ - общее количество МСЗ, в связи с наступлением жизненных событий, шт. | F188: Х | G188: Х | H188: Х | I188: Х | J188: Х | K188: Х | L188: Х | M188: Х | N188: Х | O188: Х | P188: Х | Q188: Х | R188: Х | S188: 10 | T188: 75 | U188: 100 | V188: 100 | W188: Х
A189: 1.1.4.1.-ПМ6 | B189: Доля государственных услуг гражданам, пострадавшим в результате чрезвычайных ситуаций природного и техногенного характера, доступных в электронном виде от общего числа таких услуг | C189: % | D189: 1 | E189: Депгу = Кепгу / Кобщ * 100%, где: Депгу - доля государственных услуг гражданам, пострадавшим в результате чрезвычайных ситуаций природного и техногенного характера, доступных в электронном виде от общего числа таких услуг; Кепгу - количество государственных услуг гражданам, пострадавшим в результате чрезвычайных ситуаций природного и техногенного характера, форма для подачи заявлений на которые выведена на Единый портал государственных и муниципальных услуг (функций) и поступает в информационные системы органов исполнительной власти субъекта Российской Федерации, используемых для назначения мер социальной поддержки, шт.; Кобщ - общее количество государственных услуг гражданам, пострадавшим в результате чрезвычайных ситуаций природного и техногенного характера, предоставляемых Министерством труда и социальной защиты населения Забайкальского края, шт. | F189: Х | G189: Х | H189: Х | I189: Х | J189: Х | K189: Х | L189: Х | M189: Х | N189: Х | O189: Х | P189: Х | Q189: Х | R189: Х | S189: 100 | T189: 100 | U189: 100 | V189: 100 | W189: Х
A190: 1.1.4.2. | B190: Мероприятие «Интеграция автоматизированной системы "Адресная социальная помощь" с ЕГИССО с целью предоставления государственной социальной помощи на основании социального контракта с использованием ЕГИССО» | C190: Х | D190: 1 | E190: Х | F190: 2024-2025 | G190: Министерство труда и социальной защиты населения Забайкальского края | H190: Х | I190: Х | J190: Х | K190: Х | L190: Х | M190: Х | N190: Х | O190: Х | P190: Х | Q190: Х | R190: Х | S190: Х | T190: Х | U190: Х | V190: Х | W190: Х
B191: финансирование за счет краевого бюджета | C191: тыс.рублей | D191: Х | E191: Х | F191: Х | G191: Х | H191: Х | I191: Х | J191: Х | K191: Х | L191: Х | M191: Х | N191: Х | O191: Х | P191: Х | Q191: Х | R191: Х | S191: Х | T191: Х | U191: 0 | V191: 0 | W191: Х
A192: 1.1.4.2.-ПМ1 | B192: Показатель «Доля требований к интеграции ведомственной информационной системы органа социальной защиты и ЕГИССО, обеспеченных органом социальной защиты" | C192: % | D192: 1 | E192: Показатель равен 0 %, если ВИС не интегрирована с ЕГИССО, 100 % - если ВИС интегрирована с ЕГИССО | F192: 2024-2025 | G192: Х | H192: Х | I192: Х | J192: Х | K192: Х | L192: Х | M192: Х | N192: Х | O192: Х | P192: Х | Q192: Х | R192: Х | S192: Х | T192: Х | U192: 100 | V192: 100 | W192: Х
A193: 1.1.4.2.-ПМ2 | B193: Процесс заключения и оказания государственной социальной помощи на основании социального контракта, включая прием и обработку заявлений о предоставлении государственной социальной помощи на основании социального контракта с ЕПГУ, принятия решений о заключении социального контракта, формирование программы социальной адаптации и социального контракта ведется посредством автоматизированной информационной системы «Адресная социальная помощь», интегрированной с подсистемой установления выплат ЕГИССО | C193: % | D193: 1 | E193: Показатель равен 1 - если ГСП на основании социального контракта осуществляется посредством автоматизированной информационной системы «Адресная социальная помощь», интегрированной с подсистемой установления выплат ЕГИССО, 0 - в противном случае. | F193: 2024-2025 | G193: Х | H193: Х | I193: Х | J193: Х | K193: Х | L193: Х | M193: Х | N193: Х | O193: Х | P193: Х | Q193: Х | R193: Х | S193: Х | T193: Х | U193: 1 | V193: 1 | W193: Х
A194: 1.1.4.3. | B194: Мероприятие «Подключение к информационной системе «Единый контакт-центр взаимодействия с гражданами» | C194: Х | D194: 1 | E194: Х | F194: 2022-2025 | G194: Министерство труда и социальной защиты населения Забайкальского края | H194: Х | I194: Х | J194: Х | K194: Х | L194: Х | M194: Х | N194: Х | O194: Х | P194: Х | Q194: Х | R194: Х | S194: Х | T194: Х | U194: Х | V194: Х | W194: Х
B195: финансирование за счет краевого бюджета | C195: тыс.рублей | D195: Х | E195: Х | F195: Х | G195: Х | H195: Х | I195: Х | J195: Х | K195: Х | L195: Х | M195: Х | N195: Х | O195: Х | P195: Х | Q195: Х | R195: Х | S195: Х | T195: Х | U195: 0 | V195: 0 | W195: Х
A196: 1.1.4.3.-ПМ1 | B196: Показатель «Качество обеспечения функционирования информационной системы «Единый контакт-центр взаимодействия с гражданами» в Министерстве труда и социальной защиты населения Забайкальского края и подведомственных ему учреждениях» | C196: % | D196: 1 | E196: (Ф + ЭС + Вр) * 100%, где: Ф - Показатель функционирования ведомственного сегмента ИС ЕКЦ в органе государственной власти Забайкальского края в сфере социальной защиты населения, ЭС - Показатель наполнения экспертной системы ИС ЕКЦ актуальной информацией, Вр - Показатель времени дозвона до оператора | F196: Х | G196: Х | H196: Х | I196: Х | J196: Х | K196: Х | L196: Х | M196: Х | N196: Х | O196: Х | P196: Х | Q196: Х | R196: Х | S196: 50 | T196: 80 | U196: 90 | V196: 100 | W196: Х
B197: Задача 2. «Повышение ожидаемой продолжительности жизни. Обеспечение потребности граждан пожилого возраста и инвалидов в социальном обслуживании» | C197: Х | D197: Х | E197: Х | F197: Х | G197: Х | H197: Х | I197: Х | J197: Х | K197: Х | L197: Х | M197: Х | N197: Х | O197: Х | P197: Х | Q197: Х | R197: Х | S197: Х | T197: Х | U197: Х | V197: Х | W197: Х
B198: Подпрограмма 2. «Модернизация и развитие социального обслуживания граждан пожилого возраста и инвалидов» | C198: Х | D198: 1 | E198: Х | F198: Х | G198: Министерство труда и социальной защиты населения Забайкальского края, Министерство строительства, дорожного хозяйства и транспорта Забайкальского края | H198: Х | I198: Х | J198: Х | K198: Х | L198: Х | M198: Х | N198: Х | O198: Х | P198: Х | Q198: Х | R198: Х | S198: Х | T198: Х | U198: Х | V198: Х | W198: Х
A199: 1.2 | B199: финансирование за счет федерального бюджета | C199: тыс. рублей | D199: Х | E199: Х | F199: Х | G199: Х | H199: Х | I199: Х | J199: Х | K199: 0 | L199: 0 | M199: 0 | N199: 0 | O199: 0 | P199: =P302+P230 -> 29175.1 | Q199: =Q302+Q230+Q253 -> 151351.355 | R199: =R302+R240 -> 60630.4 | S199: =S302+S240 -> 56912.599 | T199: =T302+T240 -> 63727.5 | U199: =U302+U240 -> 540279 | V199: =V302+V240 -> 0 | W199: 902075.954
B200: финансирование за счет средств Фонда пенсионного и социального страхования Российской Федерации | C200: тыс. рублей | D200: Х | E200: Х | F200: Х | G200: Х | H200: Х | I200: Х | J200: Х | K200: =K223 -> 3343.6 | L200: =L223 -> 21925.7 | M200: =M223+M264 -> 6522.86396 | N200: 1971.6 | O200: 1930.2 | P200: =P223+P264 -> 0 | Q200: =Q223+Q264 -> 0 | R200: 0 | S200: 0 | T200: 0 | U200: 0 | V200: 0 | W200: 35693.96396
B201: финансирование за счет краевого бюджета | C201: тыс. рублей | D201: Х | E201: Х | F201: Х | G201: Х | H201: Х | I201: Х | J201: Х | K201: =K206+K231+K241+K265+K271+K286 -> 1096949.3 | L201: =L206+L231+L241+L265+L271+L286 -> 989102.1 | M201: =M206+M231+M241+M265+M271+M286 -> 991157.2382 | N201: =N206+N231+N241+N265+N271+N286+N295 -> 1144614.897 | O201: =O206+O231+O241+O265+O271+O286+O295 -> 1606022.954 | P201: =P206+P231+P241+P265+P271+P286+P295+P301 -> 1896468.2 | Q201: 1929228.682 | R201: 2000037.3 | S201: 2071228.93 | T201: 2093740.3 | U201: 1622015.01 | V201: 1952978.7 | W201: 19393543.61
B202: - из Фонда | C202: тыс. рублей | D202: Х | E202: Х | F202: Х | G202: Х | H202: Х | I202: Х | J202: Х | K202: 0 | L202: 0 | M202: 0 | N202: 0 | O202: 0 | P202: 0 | Q202: 0 | R202: 0 | S202: =S282 -> 57.5 | T202: =T282 -> 0 | U202: 0 | V202: 0 | W202: 57.5
A203: 1.2-ПП1 | B203: Показатель «Удельный вес (доля) граждан пожилого возраста и инвалидов (взрослых), получивших социальные услуги в учреждениях социального обслуживания, в общем числе граждан, обратившихся за получением социальных услуг в учреждения социального обслуживания» | C203: % | D203: 1 | E203: П / О *100, где: П - число граждан, получивших услуги в учреждениях социального обслуживания населения края; О - число граждан, обратившихся за получением социальных услуг в учреждениях социального обслуживания населения. | F203: Х | G203: Х | H203: Х | I203: Х | J203: Х | K203: 79.2 | L203: 83 | M203: 86.1 | N203: 91 | O203: 96 | P203: 97 | Q203: 100 | R203: 100 | S203: 100 | T203: 100 | U203: 100 | V203: 100 | W203: Х
... 952 more rows

Sheet Лист1
